Workbook

Sheet Report-GenFund
A1: City of Crandall, Texas
A2: Budget - General Fund
A3: 2015-2016
H5: Proposed
E6: 2012-13 | F6: 2013-14 | G6: 2014-15 | H6: 2015-2016 | I6: Difference
A7: Revenues:
B8: PERMIT FEES | C8: 101-5112-100 | E8: 50000 | F8: 45000 | G8: 50000 | H8: 55000 | I8: =H8-G8 -> 5000
B9: INFRASTRUCTURE FEES | C9: 101-5112-200 | E9: 20000 | F9: 15000 | G9: 15000 | H9: 15000 | I9: =H9-G9 -> 0
B10: FIRE INSPECTION FEE | C10: 101-5112-300 | E10: 0 | F10: 0 | I10: 0
B11: LIFE SAFETY INSPECTION | C11: 101-5112-400 | E11: 0 | F11: 0 | I11: 0
B12: CONTRACTOR LICENSE | C12: 101-5112-500 | E12: 0 | F12: 0 | I12: 0
B13: PERMITS - HEARTLAND | C13: 101-5112-700 | E13: 0 | F13: 0 | H13: 800 | I13: 800
B14: ZONING/VARIANCE | C14: 101-5113-000 | E14: 200 | F14: 500 | G14: 500 | H14: 1000 | I14: 500
B15: VEHICLE REPLACEMENT - HEARTLAND | C15: 101-5185-000 | E15: 0 | F15: 0 | H15: 43000 | I15: 43000
B16: POLICE - SRO | C16: 101-6320-100 | E16: 0 | F16: 0 | G16: 54068 | H16: 108136 | I16: 54068
B17: POLICE SERVICES AGREEMENT-Heartland | C17: 101-6320-000 | E17: 205000 | F17: 271250 | G17: 235398 | H17: 235398 | I17: 0
B18: Charges for services | E18: =SUM(E8:E17) -> 275200 | F18: 331750 | G18: =SUM(G8:G17) -> 354966 | H18: =SUM(H8:H17) -> 458334 | I18: 103368
B19: FINES & FEES | C19: 101-5150-000 | E19: 140000 | F19: 150000 | G19: 130000 | H19: 130000 | I19: 0
B20: WARRANT FEES | C20: 101-5151-000 | E20: 15000 | F20: 15000 | G20: 15000 | H20: 15000 | I20: 0
B21: ADM FEES COLL | C21: 101-5152-000 | E21: 0 | F21: 0 | I21: 0
B22: CEDC SERIES 2010A | C22: 101-5152-100 | E22: 0 | F22: 38463 | G22: 38463 | H22: 38463 | I22: 0
B23: MUNICIPAL COURT SECURITY FUND | C23: 101-5152-200 | E23: 3800 | F23: 3800 | G23: 3800 | I23: -3800
B24: JUDICIAL EFFICIENCY FEE | C24: 101-5152-300 | E24: 1000 | F24: 1000 | G24: 1000 | H24: 1000 | I24: 0
B25: TRAFFIC FINES | C25: 101-5153-000 | E25: 3800 | F25: 3800 | G25: 3800 | H25: 3800 | I25: 0
B26: ADDITIONAL COURT COSTS | C26: 101-5154-000 | E26: 0 | F26: 0 | I26: 0
B27: MUNICIPAL COURT TECH FUND | C27: 101-5155-000 | E27: 10000 | F27: 10000 | G27: 15000 | H27: 18000 | I27: 3000
B28: STATE FEES | C28: 101-5156-000 | E28: 75000 | F28: 75000 | G28: 75000 | H28: 75000 | I28: 0
B29: FTA (DPS/OMNIBASE) | C29: 101-5158-000 | E29: 0 | F29: 0 | I29: 0
B30: FTA (CITY) | C30: 101-5159-000 | E30: 0 | F30: 0 | I30: 0
B31: POLICE SEIZURE REVENUE 32-7499 | C31: 101-5160-100 | E31: 0 | G31: 8150 | H31: 9000 | I31: 850
B32: UNUSED MUN. CT. TECH FUNDS | C32: 101-5998-000 | E32: 0 | F32: 0 | I32: 0
B33: POLICE SEIZURE REVENUE | C33: 101-5006-000 | E33: 0 | F33: 0 | I33: 0
B34: TCLEOSE REVENUE | C34: 101-5455-000 | E34: 0 | F34: 0 | I34: 0
B35: Fines and Forfeitures | E35: =SUM(E19:E34) -> 248600 | F35: 297063 | G35: =SUM(G19:G34) -> 290213 | H35: =SUM(H19:H34) -> 290263 | I35: 50 | J35: =SUM(I35) -> 50 | K35: =SUM(J35) -> 50 | L35: =SUM(K35) -> 50 | M35: =SUM(L35) -> 50 | N35: =SUM(M35) -> 50
B36: REFUNDS | C36: 101-4076-360 | E36: 0 | F36: 0 | I36: 0
B37: PRIOR YEAR RESOURCES | C37: 101-5000-000 | E37: 0 | F37: 0 | I37: 0
B38: PROPERTY TAX (M & O) | C38: 101-5102-100 | E38: =138637529*0.005875 -> 814495.4829 | F38: 765000 | G38: 715000 | H38: 715000 | I38: 0
B39: PROPERTY TAX PENALTIES | C39: 101-5106 | E39: 0 | F39: 0 | I39: 0
I40: 0
B41: Property taxes - M&O - 53 cents | E41: =SUM(E36:E40) -> 814495.4829 | F41: 765000 | G41: 715000 | H41: 736450 | I41: 21450
B42: Property value = 133,596,375 | I42: 0
E43: 0 | F43: 0 | G43: 0 | I43: 0
B44: Property taxes - I&S - 23 cents | C44: 101-2102-200 | E44: =E43 -> 0 | F44: 331066.4193 | G44: 331066 | H44: 340000 | I44: 8934
B45: CVFD | C45: 101-5005-000 | E45: 92500 | F45: 92500 | G45: 100000 | H45: 100000 | I45: 0
B46: SALES TAX | C46: 101-5103-100 | E46: 175000 | F46: 185000 | G46: 200000 | H46: 220000 | I46: 20000
B47: CEDC | C47: 101-5103-200 | E47: 60000 | F47: 92500 | G47: 100000 | H47: 100000 | I47: 0
B48: Sales tax | E48: =SUM(E45:E47) -> 327500 | F48: 370000 | G48: =SUM(G45:G47) -> 400000 | H48: =SUM(H45:H47) -> 420000 | I48: 20000
I49: 0
B50: Franchise tax | C50: 101-5104-000 | E50: 150000 | F50: 150000 | G50: =F50*(1+G$4) -> 150000 | H50: 150000 | I50: 0
B51: Franchise - Utility | E51: =69621*2 -> 139242 | F51: 143419.26 | G51: =F51*(1+G$4) -> 143419.26 | H51: 143419 | I51: -0.26
B52: WATER TOWER LEASES | C52: 101-5114-000 | E52: 27000 | F52: 10000 | G52: =F52*(1+G$4) -> 10000 | H52: 5000 | I52: -5000
B53: REMEDIATION | C53: 101-5115-000 | E53: 0 | F53: 0 | I53: 0
B54: ACCIDENT REPORTS | C54: 101-5119-000 | E54: 0 | F54: 0 | I54: 0
B55: OPEN RECORDS REQUESTS | C55: 101-5120-000 | E55: 0 | F55: 0 | I55: 0
B56: CREDIT CARD USE FEE | C56: 101-5131-000 | E56: 0 | F56: 0 | G56: 300 | I56: -300
B57: DT CONSTRUCTION RENTAL REVENUE | C57: 101-5190-000 | E57: 0 | F57: 0 | I57: 0
B58: MISCELLANEOUS REVENUE | C58: 101-5130-000 | E58: 25000 | F58: 20000 | G58: 40000 | H58: 60000 | I58: 20000
C59: 101-5146-000 | E59: 0 | I59: 0
B60: KAUFMAN COUNTY TOURNAMENT | C60: 101-5149-000 | E60: 0 | F60: 0 | I60: 0
B61: SILENT STARS DONATIONS | C61: 101-5992-000 | E61: 0 | F61: 0 | I61: 0
B62: ANIMAL IMPOUND FEE | C62: 101-5132-000 | E62: 0 | F62: 0 | H62: 150 | I62: 150
B63: ANIMAL BOARDING FEE | C63: 101-5133-000 | E63: 0 | F63: 0 | I63: 0
B64: REIMBURSEMENT OF LEGAL FEES | C64: 101-5134-000 | E64: 0 | F64: 0 | I64: 0
B65: REIMBURSEMENT OF PLANNER/ENGIN | C65: 101-5135-000 | E65: 0 | F65: 0 | H65: 1100 | I65: 1100
B66: REIMBURSEMENT CEDC STAFF | C66: 101-5144-000 | E66: 0 | F66: 0 | I66: 0
B67: SHOP REIMBURSEMENT | C67: 101-5145-000 | E67: 0 | F67: 0 | I67: 0
B68: KAUFMAN CO. DAY | C68: 101-5149-100 | E68: 0 | F68: 0 | I68: 0
B69: OTHER INCOME | C69: 204-5700-000 | E69: 0 | F69: 0 | I69: 0
B70: INTEREST INCOME | C70: 101-5920-000 | E70: 0 | F70: 0 | I70: 0
B71: INTEREST INCOME | C71: 204-5920-000 | E71: 0 | F71: 0 | I71: 0
B72: FIRE INS REIMB | C72: 101-5136-000 | E72: 0 | F72: 0 | I72: 0
B73: Rent | C73: 101-5210-000 | E73: 0 | F73: 0 | I73: =H73-G73 -> 0
B74: RENTAL REGISTRATION FEE | C74: 101-5121-000 | E74: 0 | F74: 0 | H74: 800 | I74: 800
B75: POLICE REIMB | C75: 101-5165-100 | E75: 0 | F75: 0 | I75: 0
B76: CONTRIBUTIONS REVENUE | C76: 101-5160-000 | E76: 0 | F76: 0 | I76: 0
B77: STATE/FEDERAL GRANT | C77: 101-5450-000 | E77: 0 | F77: 0 | I77: 0
B78: Silent Stars Donations | C78: 101-5592-000 | E78: 0 | F78: 0 | I78: 0
B79: CHRISTMAS FESTIVITIES | C79: 101-5595-000 | E79: 0 | F79: 10000 | G79: 6000 | H79: 6000 | I79: 0
B80: REIMB FROM HEARTLAND- BUILDING INS | E80: 0 | F80: 0 | G80: 0 | I80: 0
B81: Other Revenue Sources | E81: 35000 | F81: 40000 | G81: =SUM(G52:G80) -> 56300 | H81: =SUM(H52:H80) -> 73050 | I81: 16750
I82: 0
B83: Total Revenues | E83: =E18+E35+E41+E48+E50+E51+E52+E81+E44 -> 2017037.483 | F83: 2428298.679 | G83: =G18+G35+G41+G44+G48+G50+G81+G51 -> 2440964.26 | H83: =H18+H35+H41+H44+H48+H50+H51+H81 -> 2611516 | I83: 170551.74
A85: Expenditures:
B86: PAYROLL EXPENSES-Longevity Pay | C86: 101-7-20-6560-000 | E86: 0 | F86: 0 | H86: 2000 | I86: =H86-G86 -> 2000
B87: CITY HALL-ADMIN | C87: 101-7-20-7000-999 | E87: 0 | F87: 0 | I87: =H87-G87 -> 0
B88: SALARIES & WAGES - ADMIN. | C88: 101-7-20-7101-000 | E88: 213752.8952 | F88: 209500 | G88: 216845 | H88: 224032 | I88: 7187
B89: PART TIME WAGES | C89: 101-7-20-7103-200 | E89: 0 | I89: 0
B90: BENEFITS | C90: 101-7-20-7105-000 | E90: 37074.16608 | F90: 21475 | G90: 24064 | H90: 22741 | I90: -1323
B91: CONTRIBUTIONS/DONATIONS | C91: 101-7-20-5160-000 | F91: 0 | I91: 0
B92: PAID TIME OFF | E92: 4268.22 | F92: 0 | I92: 0
B93: HSA BENEFITS | C93: 101-7-20-7105-100 | E93: 0 | F93: 0 | I93: 0
B94: MEDICARE | C94: 101-7-20-7106-000 | E94: 3621.9154 | F94: 3016 | G94: 3011 | H94: 3076 | I94: 65
B95: WORKERS COMPENSATION | C95: 101-7-20-7107-000 | E95: 472.5 | F95: 500 | G95: 500 | H95: 5000 | I95: 4500
B96: RETIREMENT | C96: 101-7-20-7108-000 | E96: 17610.0025 | F96: 18600 | G96: 22806.4 | H96: 23803 | I96: 996.6
B97: FICA | C97: 101-7-20-7109-000 | E97: 0 | F97: 0 | I97: 0
B98: UNEMPLOYMENT | C98: 101-7-20-7110-000 | E98: 0 | F98: 0 | I98: 0
B99: CM AUTO ALLOWANCE | C99: 101-7-20-7111-000 | E99: 2400 | F99: 2400 | G99: 2400 | H99: 2400 | I99: 0
B100: CM HOUSING ALLOWANCE | C100: 101-7-20-7111-100 | E100: 0 | F100: 0 | G100: 0 | I100: 0
B101: CM INSURANCE ALLOWANCE | C101: 101-7-20-7111-200 | E101: 0 | F101: 0 | I101: 0
B102: CM EXPENSE | C102: 101-7-20-7112-000 | E102: 5000 | F102: 5000 | G102: 5000 | H102: 5000 | I102: 0
B103: CM TRAINING | C103: 101-7-20-7113-000 | E103: 4000 | F103: 4000 | G103: 4000 | H103: 3000 | I103: -1000
B104: COUNCIL EXPENSE | C104: 101-7-20-7115-000 | E104: 20000 | F104: 10000 | G104: 10000 | H104: 8000 | I104: -2000
B105: PLANNING & ZONING EXPENSE | C105: 101-7-20-7116-000 | E105: 200 | F105: 200 | G105: 200 | H105: 200 | I105: 0
B106: TUITION & TRAINING | C106: 101-7-20-7120-000 | E106: 3000 | F106: 3000 | G106: 3000 | H106: 3000 | I106: 0
B107: TRAVEL EXPENSE | C107: 101-7-20-7121-000 | E107: 3000 | F107: 2500 | G107: 2500 | H107: 2500 | I107: 0
B108: EMPLOYEE RECOGNITION | C108: 101-7-20-7150-000 | E108: 2000 | F108: 500 | G108: 500 | H108: 500 | I108: 0
B109: 457 CONTRIBUTION | C109: 101-7-20-7151-000 | E109: 0 | F109: 0 | I109: 0
B110: CLERICAL SUPPLIES | C110: 101-7-20-7201-100 | E110: 0 | F110: 0 | I110: 0
B111: OFFICE SUPPLIES | C111: 101-7-20-7201-200 | E111: 6500 | F111: 6000 | G111: 6000 | H111: 6000 | I111: 0
B112: CLEANING SUPPLIES | C112: 101-7-20-7201-300 | E112: 0 | F112: 0 | I112: 0
B113: POSTAGE | C113: 101-7-20-7202-000 | E113: 3000 | F113: 3000 | G113: 3000 | H113: 3000 | I113: 0
B114: DUES & SUBSCRIPTIONS | C114: 101-7-20-7203-000 | E114: 5000 | F114: 3000 | G114: 3000 | H114: 3000 | I114: 0
B115: NEWSLETTER | C115: 101-7-20-7211-000 | E115: 6000 | F115: 5000 | G115: 5700 | H115: 5700 | I115: 0
B116: PRINTING | C116: 101-7-20-7215-000 | E116: 1500 | F116: 1000 | G116: 1000 | H116: 1000 | I116: 0
B117: ELECTION SUPPLIES | C117: 101-7-20-7216-000 | E117: 3500 | F117: 3500 | G117: 3500 | H117: 3500 | I117: 0
B118: BANK FEES | C118: 101-7-20-7219-000 | E118: 0 | F118: 0 | I118: 0
B119: EQUIPMENT M&R | C119: 101-7-20-7222-000 | E119: 1000 | F119: 1000 | G119: 1000 | H119: 1000 | I119: 0
B120: BUILDING MAINTENANCE | C120: 101-7-20-7230-000 | E120: 2000 | F120: 1000 | G120: 1500 | H120: 1500 | I120: 0
B121: BUILDING CLEANING | C121: 101-7-20-7231-000 | E121: 5200 | F121: 3500 | G121: 3500 | H121: 3500 | I121: 0
B122: ELECTRICITY | C122: 101-7-20-7301-000 | E122: 20400 | F122: 39600 | G122: 40788 | H122: 40800 | I122: 12
B123: WATER UTILITY | C123: 101-7-20-7301-100 | E123: 1500 | F123: 1500 | G123: 1500 | H123: 1500 | I123: 0
B124: ELECTRICITY - PARKING LITE | C124: 101-7-20-7301-200 | E124: 550 | F124: 700 | G124: 700 | H124: 700 | I124: 0
B125: STREET LIGHTS | C125: 101-7-20-7302-000 | E125: 0 | F125: 0 | I125: 0
B126: TELEPHONE | C126: 101-7-20-7310-000 | E126: 9200 | F126: 5000 | G126: 5000 | H126: 5000 | I126: 0
B127: AIR CARDS | C127: 101-7-20-7311-000 | E127: 1250 | F127: 840 | G127: 840 | H127: 500 | I127: -340
B128: COUNCIL AIR CARD | C128: 101-7-20-7311-100 | E128: 550 | F128: 0 | I128: 0
B129: LEGAL FEES | C129: 101-7-20-7401-000 | E129: 12000 | F129: 10000 | G129: 8000 | H129: 8000 | I129: 0
B130: BOOKKEEPING FEES | C130: 101-7-20-7402-000 | E130: 5000 | F130: 6000 | G130: 2400 | H130: 5000 | I130: 2600
B131: AUDIT | C131: 101-7-20-7403-000 | E131: 2000 | F131: 3000 | G131: 3000 | H131: 5000 | I131: 2000
B132: PLANNER FEES | C132: 101-7-20-7404-000 | E132: 7000 | F132: 8000 | G132: 8000 | H132: 8000 | I132: 0
B133: ENGINEERING FEES | C133: 101-7-20-7405-000 | E133: 2000 | F133: 2000 | G133: 2000 | H133: 2000 | I133: 0
B134: SOFTWARE SUPPORT | C134: 101-7-20-7406-000 | E134: 3000 | F134: 3000 | G134: 3000 | H134: 3000 | I134: 0
B135: IT SUPPORT | C135: 101-7-20-7407-000 | E135: 3500 | F135: 3500 | G135: 3500 | H135: 3500 | I135: 0
B136: CONSULTANT FEES | C136: 101-7-20-7408-000 | E136: 0 | F136: 0 | I136: 0
B137: STORAGE FEES | C137: 101-7-20-7409-000 | E137: 800 | F137: 400 | G137: 400 | H137: 400 | I137: 0
B138: INSURANCE | C138: 101-7-20-7410-000 | E138: 3827 | F138: 4000 | G138: 3000 | H138: 6000 | I138: 3000
B139: ADVERTISING | C139: 101-7-20-7415-000 | E139: 2500 | F139: 2000 | G139: 2000 | H139: 1500 | I139: -500
B140: APPRAISAL DISTRICT | C140: 101-7-20-7420-000 | E140: 12000 | F140: 12000 | G140: 14400 | H140: 14200 | I140: -200
B141: TAX COLLECTION | C141: 101-7-20-7421-000 | E141: 2000 | F141: 3000 | G141: 3000 | H141: 3000 | I141: 0
B142: AMIGRIP, INC. (SURETY BONDS) | C142: 101-7-20-7422-000 | E142: 175 | F142: 175 | G142: 0 | I142: 0
B143: COMPUTER UPDATE | C143: 101-7-20-7450-000 | E143: 0 | F143: 0 | I143: 0
B144: SPECIAL EVENTS-Employee & Council | C144: 101-7-20-7480-000 | E144: 2000 | F144: 3000 | G144: 0 | H144: 0 | I144: 0
B145: KAUFMAN COUNTY GOLF TOURNAMENT | C145: 101-7-20-7481-000 | E145: 0 | F145: 0 | I145: 0
B146: FEMA EMERGENCY SHELTER | C146: 101-7-20-7482-000 | E146: 0 | F146: 0 | I146: 0
B147: TERRELL ALARM (SECURITY) | C147: 101-7-20-7486-000 | E147: 0 | F147: 0 | I147: 0
B148: GRANT ADMINISTRATION | C148: 101-7-20-7490-000 | E148: 0 | F148: 0 | I148: 0
B149: WEBPAGE (DESIGN & MAINTENANCE) | C149: 101-7-20-7495-000 | E149: 1000 | F149: 3500 | G149: 3500 | H149: 3500 | I149: 0
B150: ANIMAL AWARENESS | C150: 101-7-20-7497-000 | E150: 0 | F150: 0 | I150: 0
B151: COMMUNITY LIBRARY | C151: 101-7-20-7498-000 | E151: 3000 | F151: 4000 | G151: 5000 | H151: 5000 | I151: =H151-G151 -> 0
B152: KAUFMAN COUNTY SOLID WASTE | C152: 101-7-20-7499-000 | E152: 0 | F152: 0 | I152: 0
B153: I & S (PW-70,000) | C153: 101-7-20-7603-000 | E153: 0 | F153: 0 | I153: 0
B154: BOND FEES | C154: 101-7-20-7607-000 | E154: 0 | F154: 0 | I154: 0
B155: PHONE SYSTEM (1-03) | C155: 101-7-20-7620-000 | E155: 0 | F155: 0 | I155: 0
B156: COPIER | C156: 101-7-20-7621-000 | E156: 5000 | F156: 5000 | G156: 4000 | H156: 4000 | I156: 0
B157: EDC -Sales Tax | C157: 101-7-20-7624-000 | E157: 0 | F157: 92500 | G157: 100000 | H157: 100000 | I157: 0
B158: COMPUTER LEASE PAYMENT | C158: 101-7-20-7625-000 | E158: 0 | F158: 0 | I158: 0
B159: RENTAL | C159: 101-7-20-7626-000 | E159: 0 | F159: 0 | I159: 0
B160: GRANT MATCHING | C160: 101-7-20-7650-000 | E160: 0 | F160: 0 | I160: 0
B161: GRADALL | C161: 101-7-20-7655-000 | E161: 0 | F161: 0 | I161: 0
B162: FUND BALANCE | C162: 101-7-20-7660-000 | E162: 0 | F162: 0 | I162: 0
B163: ADVANCE TO GOLF COURSE | C163: 101-7-20-7699-000 | E163: 0 | F163: 0 | I163: 0
B164: TRANSFER FOR UTILITY FUND | C164: 101-7-20-7700-000 | E164: 0 | F164: 0 | I164: 0
B165: OFFICE EQUIPMENT | C165: 101-7-20-7701-000 | E165: 2000 | F165: 2000 | G165: 2000 | H165: 2000 | I165: 0
B166: OFFICE FURNITURE | C166: 101-7-20-7702-000 | E166: 0 | F166: 0 | I166: 0
B167: CAPITAL IMPROVEMENTS-NEW ROOF | C167: 101-7-20-7704-000 | E167: 0 | F167: 0 | H167: 20000 | I167: 20000
B168: IT EQUIPMENT/SOFTWARE | C168: 101-7-20-7705-000 | E168: 5000 | F168: 5000 | G168: 5000 | H168: 2500 | I168: -2500
B169: NETWORKING | C169: 101-7-20-7715-000 | E169: 0 | F169: 0 | I169: 0
B170: COMP PLAN REVIEW-SRATEGIC PLAN | C170: 101-7-20-7716-000 | E170: 0 | F170: 0 | H170: 3000 | I170: 3000
B171: ZONING ORDINANCE AMEND | C171: 101-7-20-7717-000 | E171: 0 | F171: 0 | I171: 0
B172: DEMOLITION OF STRUCTURES | C172: 101-7-20-7717-100 | E172: 0 | F172: 0 | H172: 20000 | I172: 20000
B173: CENTRAL BUSINESS DISTRICT | C173: 101-7-20-7719-000 | E173: 0 | F173: 0 | H173: 5000 | I173: 5000
B174: GATEWAY PROJECT (EAST) | C174: 101-7-20-7719-100 | E174: 0 | F174: 0 | I174: 0
B175: MASTER PARKS AND TRAIL PLAN | C175: 101-7-20-7720-000 | E175: 0 | F175: 0 | I175: 0
B176: CHRISTMAS FESTIVITIES | C176: 101-7-20-7795-000 | F176: 8000 | G176: 8000 | H176: 8000 | I176: 0
B177: PENALTIES | C177: 101-7-20-7999-000 | E177: 0 | F177: 0 | I177: 0
B178: CLOSING COSTS | C178: 101-7-20-8000-000 | E178: 0 | F178: 0 | I178: 0
B179: CODE RED EMERGENCY PRO | C179: 204-7-20-7406-000 | E179: 0 | F179: 0 | H179: 1500 | I179: 1500
B180: CASH OVER/SHORT | C180: 204-7-99-0000-000 | E180: 0 | F180: 0 | I180: 0
B181: BANK FEES | C181: 204-7-99-7219-000 | E181: 0 | F181: 0 | I181: 0
B182: CREDIT CARD FEES | C182: 204-7-99-7440-000 | E182: 0 | F182: 0 | I182: 0
B183: City hall | E183: =SUM(E86:E182) -> 457351.6992 | F183: 535406 | G183: =SUM(G86:G182) -> 552054.4 | H183: =SUM(H86:H182) -> 616052 | I183: 63997.6
B184: SALARIES | C184: 101-7-22-7101-000 | E184: 0 | F184: 0 | I184: 0
B185: OVERTIME. | C185: 101-7-22-7102-000 | E185: 0 | F185: 0 | I185: 0
B186: BENEFITS | C186: 101-7-22-7105-000 | E186: 0 | F186: 0 | I186: 0
B187: MEDICARE | C187: 101-7-22-7106-000 | E187: 0 | F187: 0 | I187: 0
B188: WORKERS COMPENSATION | C188: 101-7-22-7107-000 | E188: 0 | F188: 3597 | I188: 0
B189: RETIREMENT | C189: 101-7-22-7108-000 | E189: 0 | F189: 0 | I189: 0
B190: 457 CONTRIBUTION | C190: 101-7-22-7109-000 | E190: 0 | F190: 0 | I190: 0
B191: OFFICE SUPPLIES | C191: 101-7-22-7201-200 | E191: 0 | F191: 0 | I191: 0
B192: SHOP SUPPLIES | C192: 101-7-22-7201-300 | E192: 3000 | F192: 4000 | G192: 3000 | H192: 3000 | I192: 0
B193: UNIFORMS-Streets & Parks | C193: 101-7-22-7125-000 | E193: 1000 | F193: 1500 | G193: 1500 | H193: 1700 | I193: 200
B194: STREET REPAIRS | C194: 101-7-22-7261-000 | E194: 0 | F194: 0 | G194: 40500 | H194: 0 | I194: -40500
B195: GAS-Streets Parks | C195: 101-7-22-7206-000 | E195: 4500 | F195: 15000 | G195: 15000 | H195: 10000 | I195: -5000
B196: DIESEL-Streets Parks | C196: 101-7-22-7207-000 | E196: 4000 | F196: 5500 | G196: 5000 | H196: 5000 | I196: 0
B197: TIRES-Streets Parks | C197: 101-7-22-7208-000 | E197: 1500 | F197: 3500 | G197: 3000 | H197: 3000 | I197: 0
B198: MAJOR VEHICLE REPAIR | C198: 101-7-22-7209-000 | E198: 3500 | F198: 2500 | G198: 2500 | H198: 2000 | I198: -500
B199: MAJOR EQUIPMENT REPAIR | C199: 101-7-22-7210-000 | E199: 3500 | F199: 3500 | G199: 3000 | H199: 3000 | I199: 0
B200: SHOP SUPPLIES | C200: 101-7-22-7210-100 | E200: 500 | F200: 0 | I200: 0
B201: SMALL TOOLS | C201: 101-7-22-7220-000 | E201: 2000 | F201: 2500 | G201: 2500 | H201: 2000 | I201: -500
B202: RENTAL EQUIPMENT | C202: 101-7-22-7221-000 | E202: 2000 | F202: 1800 | G202: 1800 | H202: 1800 | I202: 0
... 556 more rows

Sheet Report-2011BondFund
A1: City of Crandall, Texas
A2: Budget - 2011 Bond Fund
E4: Budget | F4: 0.03 | G4: 0.03 | H4: 0.03 | I4: 0.03 | J4: 0.03 | K4: 0.03 | L4: 0.03 | M4: 0.03
E6: 2013 | F6: =E6+1 -> 2014 | G6: =F6+1 -> 2015 | H6: 2016 | I6: 2017 | J6: 2018 | K6: 2019 | L6: 2020 | M6: 2021
A7: Revenues:
E8: =ConwayActual(C8) -> 
E9: =ConwayActual(C9) -> 
E10: =ConwayActual(C10) -> 
E11: =ConwayActual(C11) -> 
B12: Charges for Services | E12: =SUM(E8:E11) ->  | F12: =E12*(1+F$4) ->  | G12: =F12*(1+G$4) -> 
B14: Total Revenues | E14: =E12 ->  | F14: =F12 -> 
A16: Expenses:
E18: =ConwayActual(C18) -> 
E19: =ConwayActual(C19) -> 
B20: Streets Repairs | E20: =SUM(E18:E19) ->  | F20: 0 | G20: =F20*(1+G$4) -> 0 | H20: 0 | I20: 0 | J20: 0 | K20: 0 | L20: 0 | M20: 0
B22: Total Expenses | E22: =E20 ->  | F22: =F20 -> 0 | G22: 0 | H22: 0 | I22: 0 | J22: 0 | K22: 0 | L22: 0 | M22: 0
A23: Excess of Revenues over Expenses | E23: =E14-E22 -> 
A25: Grant Revenue
E26: =ConwayActual(C26) -> 
E27: =ConwayActual(C27) -> 
E28: =ConwayActual(C28) -> 
E29: =ConwayActual(C29) -> 
A30: Transfers | E30: =-SUM(E26:E29) ->  | F30: =SUM(F26:F29) -> 0 | G30: 0 | H30: 0 | I30: 0 | J30: 0 | K30: 0 | L30: 0 | M30: 0
A32: Increase(Decrease) in net assets | E32: =E23+E25+E30 -> 
B36: Payment of Principal Debt | E36: =-SUM(E34:E35) -> 0 | F36: =-SUM(F34:F34) -> 0 | G36: 0 | H36: 0 | I36: 0 | J36: 0 | K36: 0 | L36: 0 | M36: 0
B38: New Debt
B39: Increase In Debt | F39: =SUM(F37:F38) -> 0 | G39: 0 | H39: 0 | I39: 0 | J39: 0 | K39: 0 | L39: 0 | M39: 0
B41: Street Payments
B42: Capital Items | E42: =SUM(E40:E41) -> 0 | F42: =SUM(F41:F41) -> 0 | G42: 0 | H42: 0 | I42: 0 | J42: 0 | K42: 0 | L42: 0 | M42: 0
E44: =ConwayActual(C44) -> 
E45: =ConwayActual(C45) -> 
E46: =ConwayActual(C46) -> 
E47: =ConwayActual(C47) -> 
B48: Due To/From | E48: =SUM(E43:E47) ->  | F48: 0 | G48: 0
B51: Receivables | E51: =SUM(E49:E50) -> 0
E53: =ConwayActual(C53) -> 
B68: Payables | E68: =-SUM(E52:E67) -> 
E70: =ConwayActual(C70) -> 
E71: =ConwayActual(C71) -> 
E72: =ConwayActual(C72) -> 
B73: Deferred Revenues & Other | E73: =SUM(E69:E72) -> 
B74: Transfer to/from Restricted | E74: 0 | F74: 0 | G74: 0 | H74: 0 | J74: 0
A76: Change in Cash | E76: =E32+E36+E39+E42+E48+E51+E68+E73 ->  | F76: =F32+F36+F39+F42+F48 -> 
D78: =ConwayBalance(C78,1) -> 
D79: =ConwayBalance(C79,1) -> 
D80: =ConwayBalance(C80,1) -> 
D81: =ConwayBalance(C81,1) -> 
A82: Projected Unrestricted Cash | D82: =SUM(D78:D81) ->  | E82: =D82+E76-E36-E39-E42-E74 ->  | F82: =F76-F36-F39-F42-F74 ->  | G82: =F82+G76-G36-G39-G42-G74 -> 
D84: =ConwayBalance(C84,1) -> 
D85: =ConwayBalance(C85,1) -> 
A86: Projected Restricted Cash | D86: =SUM(D84:D85) ->  | E86: =D86+E36+E39+E42+E74 ->  | F86: =F36+F39+F42+F74 -> 0 | G86: =F86+G36+G39+G42+G74 -> 0 | H86: 0 | I86: 0 | J86: 0 | K86: 0 | L86: 0 | M86: 0
D88: =D82+D86 ->  | E88: =E82+E86 -> 
B89: Check Figure | E89: =E88-D88 -> 
B90: Difference | E90: =E76-E89 -> 
B94: Check Cash
B95: This Schedule Total | D95: =D88 ->  | E95: =E88 -> 
B96: Per Cash Balances | D96: =#REF! ->  | E96: =#REF! -> 
B98: Difference | D98: =D95-D96 ->  | E98: =E95-E96 -> 

Sheet Report-EquipmentFund (hidden)
A1: City of Crandall, Texas
A2: Detailed Budget - Equipment Fund
A3: For the six months ended March 31, 2011
E4: Actual | L4: Estimated | M4: 0.03 | N4: 0.03 | O4: 0.03 | P4: 0.03 | Q4: 0.03 | R4: 0.03 | S4: 0.03 | T4: 0.03 | U4: 0.03 | Z4: 2010 Expenditures
E5: 1st QTR | F5: Apr | G5: May | H5: Jun | I5: Jul | J5: Aug | K5: Sep | L5: Total | W5: Budget | X5: Percentage | AA5: Expected
E6: 2011 | F6: 2011 | G6: 2011 | H6: 2011 | I6: 2011 | J6: 2011 | K6: 2011 | L6: 2011 | M6: 2012 | N6: =M6+1 -> 2013 | O6: =N6+1 -> 2014 | P6: 2015 | Q6: 2016 | R6: 2017 | S6: 2018 | T6: 2019 | U6: 2020 | W6: 2010-2011 | X6: Change | Z6: Budget | AA6: Actual
A7: Revenues:
B8: INTERNAL REV VEHICLES | C8: 661-5300-000 | E8: =ConwayActual(C8) ->  | F8: 2693 | G8: 2693 | H8: 2693 | I8: 2693 | J8: 2693 | K8: 2693 | L8: =SUM(E8:K8) ->  | W8: 32316
B9: LOAN PROCEEDS | C9: 661-5300-100 | E9: =ConwayActual(C9) ->  | L9: =SUM(E9:K9) -> 
B10: INTERNAL REV - HEAVY EQUIP | C10: 661-5301-000 | E10: =ConwayActual(C10) ->  | F10: 4741 | G10: 4741 | H10: 4741 | I10: 4741 | J10: 4741 | K10: 4741 | L10: =SUM(E10:K10) ->  | W10: 56892
B11: INTERNAL REV - TRAILERS | C11: 661-5302-000 | E11: =ConwayActual(C11) ->  | L11: =SUM(E11:K11) -> 
B12: Charges for Services | E12: =SUM(E8:E11) ->  | F12: =SUM(F8:F11) -> 7434 | G12: 7434 | H12: 7434 | I12: 7434 | J12: 7434 | K12: 7434 | M12: =L12*(1+M$4) ->  | W12: 89208 | X12: =IF(ABS(W12)>0,(L12-W12)/W12,IF(ABS(L12)>0,1,0)) -> 
X13: =IF(ABS(W13)>0,(L13-W13)/W13,IF(ABS(L13)>0,1,0)) -> 0
B14: Total Revenues | E14: =E12 ->  | F14: =F12 -> 7434 | G14: 7434 | H14: 7434 | I14: 7434 | J14: 7434 | K14: 7434 | W14: 89208 | X14: =IF(ABS(W14)>0,(L14-W14)/W14,IF(ABS(L14)>0,1,0)) -> 
A16: Expenses:
B18: SALARIES & WAGES | C18: 661-7-58-7101-000 | E18: =ConwayActual(C18) ->  | F18: 958.2 | G18: 958.2 | H18: 958.2 | I18: 958.2 | J18: 958.2 | K18: 958.2 | L18: =SUM(E18:K18) ->  | W18: 11498.4 | X18: =IF(ABS(W18)>0,(L18-W18)/W18,IF(ABS(L18)>0,1,0)) -> 
B19: BENEFITS | C19: 661-7-58-7105-000 | F19: 8.99 | G19: 8.99 | H19: 8.99 | I19: 8.99 | J19: 8.99 | K19: 8.99 | W19: 107.88
B20: MEDICARE | C20: 661-7-58-7106-000 | F20: 13 | G20: 13 | H20: 13 | I20: 13 | J20: 13 | K20: 13 | W20: 156
B21: WORKERS COMPENSATION | C21: 661-7-58-7107-000 | F21: 0 | G21: 0 | H21: 0 | I21: 0 | J21: 0 | K21: 0 | W21: 0
B22: RETIREMENT | C22: 661-7-58-7108-000 | F22: 68.79 | G22: 68.79 | H22: 68.79 | I22: 68.79 | J22: 68.79 | K22: 68.79 | W22: 825.48
B23: FICA | C23: 661-7-58-7109-000 | F23: 0 | G23: 0 | H23: 0 | I23: 0 | J23: 0 | K23: 0 | W23: 0
B24: UNEMPLOYMENT | C24: 661-7-58-7110-000 | F24: 0 | G24: 0 | H24: 0 | I24: 0 | J24: 0 | K24: 0 | W24: 0
B25: CM AUTO ALLOWANCE | C25: 661-7-58-7111-000 | F25: 35 | G25: 35 | H25: 35 | I25: 35 | J25: 35 | K25: 35 | W25: 420
B26: CM HOUSING ALLOWANCE | C26: 661-7-58-7111-100 | F26: 32.08 | G26: 32.08 | H26: 32.08 | I26: 32.08 | J26: 32.08 | K26: 32.08 | W26: 384.96
B27: CM INSURANCE ALLOWANCE | C27: 661-7-58-7111-200 | F27: 36.61 | G27: 36.61 | H27: 36.61 | I27: 36.61 | J27: 36.61 | K27: 36.61 | W27: 439.32
B28: Personnel | E28: =SUM(E18:E27) ->  | F28: 1152.67 | G28: 1152.67 | H28: 1152.67 | I28: 1152.67 | J28: 1152.67 | K28: 1152.67 | M28: =L28*(1+M$4) ->  | W28: 13832.04 | Z28: =W28 -> 13832.04 | AA28: =#REF! -> 
B30: OPERATING SUPPLIES | C30: 661-7-58-7201-400 | E30: =ConwayActual(C30) ->  | F30: 0 | G30: 0 | H30: 0 | I30: 0 | J30: 0 | K30: 0 | L30: =SUM(E30:K30) ->  | W30: 0 | X30: =IF(ABS(W30)>0,(L30-W30)/W30,IF(ABS(L30)>0,1,0)) -> 
B31: GASOLINE & OIL | C31: 661-7-58-7206-000 | F31: 0 | G31: 0 | H31: 0 | I31: 0 | J31: 0 | K31: 0 | W31: 0
B32: ELECTRICITY | C32: 661-7-58-7301-000 | F32: 0 | G32: 0 | H32: 0 | I32: 0 | J32: 0 | K32: 0 | W32: 0
B33: NATURAL GAS | C33: 661-7-58-7303-000 | F33: 0 | G33: 0 | H33: 0 | I33: 0 | J33: 0 | K33: 0 | W33: 0
B34: PROFESSIONAL SERVICES | C34: 661-7-58-8010-000 | F34: 0 | G34: 0 | H34: 0 | I34: 0 | J34: 0 | K34: 0 | W34: 0
B35: REPAIR & MAINTENANCE | C35: 661-7-58-9300-100 | F35: 0 | G35: 0 | H35: 0 | I35: 0 | J35: 0 | K35: 0 | W35: 0
B36: EQUIP MAINT - D.P.W. | C36: 661-7-58-9300-200 | F36: 0 | G36: 0 | H36: 0 | I36: 0 | J36: 0 | K36: 0 | W36: 0
B37: EQUIP MAINT FIRE DEPT | C37: 661-7-58-9300-300 | F37: 0 | G37: 0 | H37: 0 | I37: 0 | J37: 0 | K37: 0 | W37: 0
B38: EQUIP MAINT W/S DEPT | C38: 661-7-58-9300-400 | F38: 0 | G38: 0 | H38: 0 | I38: 0 | J38: 0 | K38: 0 | W38: 0
B39: VEHICLE MAINTENANCE-POLICE | C39: 661-7-58-9300-500 | F39: 0 | G39: 0 | H39: 0 | I39: 0 | J39: 0 | K39: 0 | W39: 0
B40: POLICE VEHICLES | C40: 661-7-58-9760-000 | F40: 0 | G40: 0 | H40: 0 | I40: 0 | J40: 0 | K40: 0 | W40: 0
B41: EQUIPMENT-D.P.W. | C41: 661-7-58-9770-000 | F41: 0 | G41: 0 | H41: 0 | I41: 0 | J41: 0 | K41: 0 | W41: 0
B42: EQUIPMENT-FIRE DEPARTMENT | C42: 661-7-58-9780-000 | F42: 0 | G42: 0 | H42: 0 | I42: 0 | J42: 0 | K42: 0 | W42: 0
B43: EQUIP WATER/SEWER DEPT | C43: 661-7-58-9790-000 | F43: 0 | G43: 0 | H43: 0 | I43: 0 | J43: 0 | K43: 0 | W43: 0
B44: RESERVE-D.P.W. | C44: 661-7-58-9810-000 | F44: 0 | G44: 0 | H44: 0 | I44: 0 | J44: 0 | K44: 0 | W44: 0
B45: RESERVE-FIRE DEPT | C45: 661-7-58-9820-000 | F45: 0 | G45: 0 | H45: 0 | I45: 0 | J45: 0 | K45: 0 | W45: 0
B46: RESERVE-POLICE DEPT | C46: 661-7-58-9830-000 | F46: 0 | G46: 0 | H46: 0 | I46: 0 | J46: 0 | K46: 0 | W46: 0
B47: RESERVE-W/S DEPT | C47: 661-7-58-9840-000 | F47: 0 | G47: 0 | H47: 0 | I47: 0 | J47: 0 | K47: 0 | W47: 0
B48: Supplies | E48: =SUM(E30:E47) ->  | F48: =SUM(F30:F47) -> 0 | G48: 0 | H48: 0 | I48: 0 | J48: 0 | K48: 0 | L48: =SUM(L29:L47) ->  | M48: =L48*(1+M$4) ->  | W48: 0 | X48: =IF(ABS(W48)>0,(L48-W48)/W48,IF(ABS(L48)>0,1,0)) ->  | Z48: =W48 -> 0 | AA48: =#REF! -> 
B50: CPA FEES | C50: 661-7-58-7402-000 | E50: =ConwayActual(C50) ->  | F50: 0 | G50: 0 | H50: 0 | I50: 0 | J50: 0 | K50: 0 | L50: =SUM(E50:K50) ->  | W50: 0 | X50: =IF(ABS(W50)>0,(L50-W50)/W50,IF(ABS(L50)>0,1,0)) -> 
B51: AUDIT | C51: 661-7-58-7403-000 | E51: =ConwayActual(C51) ->  | F51: 0 | G51: 0 | H51: 0 | I51: 0 | J51: 0 | K51: 0 | L51: =SUM(E51:K51) ->  | W51: 0
B52: INSURANCE & BONDS | C52: 661-7-58-7410-000 | E52: =ConwayActual(C52) ->  | F52: 0 | G52: 0 | H52: 0 | I52: 0 | J52: 0 | K52: 0 | L52: =SUM(E52:K52) ->  | W52: 0
B53: DEPRECIATION | C53: 661-7-58-8000-000 | E53: =ConwayActual(C53) ->  | F53: 0 | G53: 0 | H53: 0 | I53: 0 | J53: 0 | K53: 0 | L53: =SUM(E53:K53) ->  | W53: 0
B54: Administration | E54: =SUM(E49:E53) ->  | F54: =SUM(F49:F53) -> 0 | G54: 0 | H54: 0 | I54: 0 | J54: 0 | K54: 0 | M54: =L54*(1+M$4) ->  | W54: 0 | Z54: =W54 -> 0 | AA54: =#REF! -> 
X55: 0
B56: Total Expenses | E56: =E28+E48+E54 ->  | F56: 1152.67 | G56: 1152.67 | H56: 1152.67 | I56: 1152.67 | J56: 1152.67 | K56: 1152.67 | W56: 13832.04
A57: Excess of Revenues over Expenses | E57: =E14-E56 ->  | F57: 6281.33 | G57: 6281.33 | H57: 6281.33 | I57: 6281.33 | J57: 6281.33 | K57: 6281.33 | W57: 75375.96
A59: Grant Revenue
B60: TRANSFER FROM GENERAL FUND | C60: 661-6990-100 | E60: =ConwayActual(C60) ->  | L60: =SUM(E60:K60) ->  | W60: 0
B61: TRANSFER FROM SEWER FUND | C61: 661-6990-200 | E61: =ConwayActual(C61) ->  | L61: =SUM(E61:K61) ->  | W61: 0
B62: TRANSFER FROM WATER FUND | C62: 661-6990-300 | E62: =ConwayActual(C62) ->  | L62: =SUM(E62:K62) ->  | W62: 0
B63: TRANSFER-OUT | C63: 661-7-99-6000-000 | E63: =ConwayActual(C63) ->  | K63: 208700 | L63: =SUM(E63:K63) ->  | W63: 50000
A64: Transfers | E64: =-SUM(E60:E63) ->  | F64: =-SUM(F60:F63) -> 0 | G64: 0 | H64: 0 | I64: 0 | J64: 0 | K64: -208700 | M64: =SUM(M60:M63) -> 0 | N64: 0 | O64: 0 | P64: 0 | Q64: 0 | R64: 0 | S64: 0 | T64: 0 | U64: 0 | W64: -50000 | X64: =IF(ABS(W64)>0,(L64-W64)/W64,IF(ABS(L64)>0,1,0)) -> 
A66: Increase(Decrease) in net assets | E66: =E57+E59+E64 ->  | F66: 6281.33 | G66: 6281.33 | H66: 6281.33 | I66: 6281.33 | J66: 6281.33 | K66: -202418.67 | W66: 25375.96
L68: =SUM(E68:K68) -> 0
L69: =SUM(E69:K69) -> 0
B70: Payment of Principal Debt | E70: =-SUM(E68:E69) -> 0 | F70: =-SUM(F68:F68) -> 0 | G70: 0 | H70: 0 | I70: 0 | J70: 0 | K70: 0 | L70: 0 | M70: 0 | N70: 0 | O70: 0 | P70: 0 | Q70: 0 | R70: 0 | S70: 0 | T70: 0 | U70: 0 | W70: =-SUM(W68:W68) -> 0 | X70: =IF(ABS(W70)>0,(L70-W70)/W70,IF(ABS(L70)>0,1,0)) -> 0
B72: New Debt | L72: =SUM(E72:K72) -> 0
B73: Increase In Debt | F73: =SUM(F71:F72) -> 0 | G73: 0 | H73: 0 | I73: 0 | J73: 0 | K73: 0 | L73: 0 | M73: 0 | N73: 0 | O73: 0 | P73: 0 | Q73: 0 | R73: 0 | S73: 0 | T73: 0 | U73: 0 | W73: 0
L75: =SUM(E75:K75) -> 0
B76: Capital Items | E76: =SUM(E74:E75) -> 0 | F76: =SUM(F75:F75) -> 0 | G76: 0 | H76: 0 | I76: 0 | J76: 0 | K76: 0 | L76: 0 | M76: 0 | N76: 0 | O76: 0 | P76: 0 | Q76: 0 | R76: 0 | S76: 0 | T76: 0 | U76: 0 | W76: =SUM(W75:W75) -> 0
B78: DUE TO OTHER FUNDS | C78: 661-2140-000 | E78: =ConwayActual(C78) ->  | K78: 0 | L78: =SUM(E78:K78) -> 
B79: DUE TO PAYROLL | C79: 661-2140-750 | E79: =ConwayActual(C79) ->  | K79: 0 | L79: =SUM(E79:K79) -> 
B80: DUE FROM OTHER FUNDS | C80: 661-1084-000 | E80: =ConwayActual(C80) ->  | L80: =SUM(E80:K80) -> 
B81: DUE FROM PAYROLL | C81: 661-1084-750 | E81: =ConwayActual(C81) ->  | L81: =SUM(E81:K81) -> 
B82: Due To/From | E82: =SUM(E77:E81) ->  | K82: =SUM(K77:K81) -> 0 | L82: =SUM(L77:L81) ->  | M82: 0 | N82: 0 | O82: 0
B85: Receivables | E85: =SUM(E83:E84) -> 0 | L85: =SUM(L83:L84) -> 0
B87: ACCOUNTS PAYABLE - POOLED | C87: 661-2010-000 | E87: =ConwayActual(C87) ->  | L87: =SUM(E87:K87) -> 
B88: ACCOUNTS PAYABLE | C88: 661-2020-000
B89: EMPLOYEE CHRISTMAS SAVINGS | C89: 661-2159-000
B90: SUPPLEMENTAL INSURANCE | C90: 661-2161-000
B91: UNITED WAY WITHHOLDING | C91: 661-2250-000
B92: FICA SS WITHHOLDING | C92: 661-2260-000
B93: FICA MEDICARE WITHHOLDING | C93: 661-2270-000
B94: FEDERAL WITHHOLDING | C94: 661-2280-000
B95: TMRS WITHHELD | C95: 661-2310-000
B96: OTHER GARNISHMENTS | C96: 661-2320-000
B97: GROUP HEALTH & LIFE | C97: 661-2330-000
B98: CHILD SUPPORT PAYABLE | C98: 661-2340-000
B99: DISCOUNTS | C99: 661-2800-000
B100: FIRE TRUCK LOAN | C100: 661-2950-000
B101: EQUIPMENT HOURS PAYABLE | C101: 661-2999-997
B102: Payables | E102: =-SUM(E86:E101) ->  | L102: =-SUM(L86:L101) ->  | AA102: =#REF! -> 
B104: DEFERRED COMPENSATION | C104: 661-2350-000 | E104: =ConwayActual(C104) ->  | L104: =SUM(E104:K104) -> 
B105: OTHER | E105: =ConwayActual(C105) ->  | L105: =SUM(E105:K105) -> 
B106: PRIOR PERIOD ADJUSTMENT | C106: 661-7-99-9999-999 | E106: =ConwayActual(C106) ->  | L106: =SUM(E106:K106) -> 
B107: Deferred Revenues & Other | E107: =SUM(E103:E106) ->  | L107: =SUM(L103:L106) ->  | AA107: =#REF! -> 
B108: Transfer to/from Restricted | E108: 0 | F108: 0 | G108: 0 | H108: 0 | I108: 0 | J108: 0 | K108: 0 | L108: 0 | M108: 0 | N108: 0 | O108: 0 | P108: 0 | R108: 0
A110: Change in Cash | E110: =E66+E70+E73+E76+E82+E85+E102+E107 ->  | F110: =F66+F70+F73+F76+F82 -> 6281.33 | G110: 6281.33 | H110: 6281.33 | I110: 6281.33 | J110: 6281.33 | K110: -202418.67 | L110: =L66+L70+L73+L76+L82+L85+L102+L107 ->  | W110: 25375.96
B112: EQUIPMENT FUND - CASH | C112: 661-1010-050 | D112: =ConwayBalance(C112,1) -> 
B113: EQUIPMENT-FIRE DEPT. CASH | C113: 661-1010-051 | D113: =ConwayBalance(C113,1) -> 
B114: CLAIM ON POOLED CASH | C114: 661-1010-099 | D114: =ConwayBalance(C114,1) -> 
B115: PETTY CASH | C115: 661-1040-000 | D115: =ConwayBalance(C115,1) -> 
A116: Projected Unrestricted Cash | D116: =SUM(D112:D115) ->  | E116: =D116+E110-E70-E73-E76-E108 ->  | L116: =K116 ->  | M116: =L116+M110-M70-M73-M76-M108 ->  | Z116: =SUM(Z16:Z111) -> 13832.04 | AA116: =SUM(AA16:AA111) ->  | AB116: =Z116-AA116 -> 
B118: EQUIPMENT FUND INVESTMENT | C118: 661-1010-052 | D118: =ConwayBalance(C118,1) -> 
B119: FIRE DEPT INVESTMENTS | C119: 661-1010-053 | D119: =ConwayBalance(C119,1) -> 
A120: Projected Restricted Cash | D120: =SUM(D118:D119) ->  | E120: =D120+E70+E73+E76+E108 ->  | L120: =K120 ->  | M120: =L120+M70+M73+M76+M108 -> 
D122: =D116+D120 -> 
B123: Check Figure | E123: =E122-D122 ->  | L123: =L122-D122 -> 
B124: Difference | E124: =E110-E123 ->  | F124: =F110-F123 -> 
B128: Check Cash
B129: This Schedule Total | D129: =D122 ->  | E129: =E122 -> 
B130: Per Cash Balances | D130: =#REF! ->  | E130: =#REF! -> 
B132: Difference | D132: =D129-D130 ->  | E132: =E129-E130 -> 

Sheet Report-Sewer
A1: City of Crandall, Texas
A2: Budget - Sewer Department
A3: 2015-2016
E7: 2012-13 | F7: 2013-14 | G7: 2014-15 | H7: 2015-16 | I7: Difference
A8: Revenues:
B9: I&S TAX | C9: 590-5102-200 | E9: 0 | F9: 0
B10: SEWER REVENUE | C10: 590-5110-000 | E10: 813125 | F10: 813125 | G10: 793800 | H10: 797000 | I10: =H10-G10 -> 3200
B11: SEWER TAP FEES | C11: 590-5111-000 | E11: 4191 | F11: 4191 | G11: 4191 | H11: 4000 | I11: =H11-G11 -> -191
B12: SEWER REBATE | C12: 590-5112-000 | E12: 0 | F12: 0 | I12: 0
B13: PENALTIES | C13: 590-5120-000 | E13: 18778 | F13: 18778 | G13: 18900 | H13: 18900 | I13: 0
B14: NSF FEES | C14: 590-5121-000 | E14: 0 | F14: 0 | I14: 0
B15: SERVICE CALL FEE | C15: 590-5122-000 | E15: 0 | F15: 0 | I15: 0
B16: MISCELLANEOUS REVENUE | C16: 590-5130-000 | E16: 6253 | F16: 6253 | G16: 6200 | H16: 5000 | I16: -1200
B17: CREDIT CARD FEE REVENUE | C17: 590-5131-000 | E17: 0 | F17: 0 | I17: 0
B18: CVFD DONATIONS REVENUE | C18: 590-5149-000 | E18: 0 | F18: 0 | I18: 0
B19: RESERVE TWDB | C19: 590-5150-000 | E19: 0 | F19: 0 | H19: 309107 | I19: 309107
B20: REIMBURSEMENT CARTWRIGHT | C20: 590-5198-000 | E20: 0 | F20: 0 | I20: 0
B21: REIMBURSEMENT MABREY | C21: 590-5199-000 | E21: 0 | F21: 0 | I21: 0
B22: INTEREST-TEXSTAR | C22: 590-5201-000 | E22: 0 | F22: 0 | I22: 0
B23: Gain or Loss on Sale of Asset | C23: 590-5700-000 | E23: 0 | F23: 0 | I23: 0
B24: INTEREST INCOME | C24: 590-5920-000 | E24: 0 | F24: 0 | I24: 0
B25: MISCELLANEOUS REVENUE | C25: 590-7-00-5130-000 | E25: 0 | F25: 0 | I25: 0
B26: Sewer Revenue | E26: =SUM(E9:E25) -> 842347 | F26: 842347 | G26: =SUM(G9:G25) -> 823091 | H26: =SUM(H9:H25) -> 1134007 | I26: 310916
B27: Total Revenues | E27: =E26 -> 842347 | F27: 842347 | G27: =G26 -> 823091 | H27: =H26 -> 1134007 | I27: 310916
I28: 0
A29: Expenses: | I29: 0
B30: SALARIES | C30: 590-7-61-7101-000 | E30: 110158.5017 | F30: 140000 | G30: 130359 | H30: 123629 | I30: -6730
B31: OVERTIME | C31: 590-7-61-7102-000 | E31: 5000 | F31: 5000 | G31: 3000 | H31: 3000 | I31: 0
B32: PAID TIME OFF | I32: 0
B33: BENEFITS | C33: 590-7-61-7105-000 | E33: 13199.68154 | F33: 21600 | G33: 22404 | H33: 26822 | I33: 4418
B34: MEDICARE | C34: 590-7-61-7106-000 | E34: 1399.9692 | F34: 2030 | G34: 1580 | H34: 1753 | I34: 173
B35: WORKERS COMPENSATION | C35: 590-7-61-7107-000 | E35: 3914 | F35: 3914 | G35: 3914 | H35: 3914 | I35: 0
B36: RETIREMENT | C36: 590-7-61-7108-000 | E36: 6806.7468 | F36: 12432 | G36: 10500 | H36: 13169 | I36: 2669
B37: FICA | C37: 590-7-61-7109-000 | E37: 0 | F37: 0 | I37: 0
B38: UNEMPLOYMENT | C38: 590-7-61-7110-000 | E38: 0 | F38: 0 | I38: 0
B39: CM AUTO ALLOWANCE | C39: 590-7-61-7111-000 | E39: 0 | F39: 0 | I39: 0
B40: CM HOUSING ALLOWANCE | C40: 590-7-61-7111-100 | E40: 0 | F40: 0 | I40: 0
B41: CM INSURANCE ALLOWANCE | C41: 590-7-61-7111-200 | E41: 0 | F41: 0 | I41: 0
B42: ADMINISTRATION REIMBURSEMENT | C42: 590-7-61-7116-000 | E42: 0 | F42: 0 | I42: 0
B43: TUITION & TRAINING | C43: 590-7-61-7120-000 | E43: 5100 | F43: 2500 | G43: 2000 | H43: 2000 | I43: 0
B44: TRAVEL EXPENSE | C44: 590-7-61-7121-000 | E44: 1000 | F44: 800 | G44: 800 | H44: 500 | I44: -300
B45: UNIFORMS | C45: 590-7-61-7125-000 | E45: 2000 | F45: 3200 | G45: 3200 | H45: 3200 | I45: 0
B46: EMPLOYEE RECOGNITION | C46: 590-7-61-7150-000 | E46: 650 | F46: 300 | G46: 300 | H46: 300 | I46: 0
B47: 457 CONTRIBUTION | C47: 590-7-61-7151-000 | E47: 0 | F47: 0 | I47: 0
B48: FRANCHISE EXPENSE | E48: 71000 | F48: 71000 | G48: 71000 | H48: 71000 | I48: 0
B49: ECO DEV COORD - BEN | E49: 0 | F49: 0 | I49: 0
B50: ECO DEV COORD - SAL | E50: 0 | F50: 0 | I50: 0
B51: ECO DEV COORD - RETIRE | E51: 0 | F51: 0 | I51: 0
I52: 0
B53: Personnel | E53: =SUM(E30:E52) -> 220228.8992 | F53: 262776 | G53: =SUM(G30:G52) -> 249057 | H53: =SUM(H30:H52) -> 249287 | I53: 230
I54: 0
B55: CLERICAL SUPPLIES | C55: 590-7-61-7201-100 | E55: 0 | F55: 0 | I55: 0
B56: OFFICE SUPPLIES | C56: 590-7-61-7201-200 | E56: 5000 | F56: 4500 | G56: 4500 | H56: 7000 | I56: 2500
B57: SHOP SUPPLIES | C57: 590-7-61-7201-300 | E57: 0 | F57: 0 | I57: 0
B58: POSTAGE | C58: 590-7-61-7202-000 | E58: 3000 | F58: 2000 | G58: 3500 | H58: 4000 | I58: 500
B59: DUES & SUBSCRIPTIONS | C59: 590-7-61-7203-000 | E59: 0 | F59: 2000 | G59: 1000 | H59: 500 | I59: -500
B60: SHOP REIMBURSEMENT | C60: 590-7-61-7205-000 | E60: 2000 | F60: 4500 | G60: 4000 | H60: 4000 | I60: 0
B61: GAS | C61: 590-7-61-7206-000 | E61: 15000 | F61: 10000 | G61: 10000 | H61: 10000 | I61: 0
B62: DIESEL | C62: 590-7-61-7207-000 | E62: 4000 | F62: 4500 | G62: 4500 | H62: 4000 | I62: -500
B63: TIRES | C63: 590-7-61-7208-000 | E63: 2500 | F63: 4000 | G63: 2000 | H63: 2000 | I63: 0
B64: VEHICLE REPAIR | C64: 590-7-61-7209-000 | E64: 5000 | F64: 4500 | G64: 4500 | H64: 4000 | I64: -500
B65: SHOP SUPPLIES- | C65: 590-7-61-7210-100 | E65: 0 | F65: 0 | I65: 0
B66: NEWSLETTER | C66: 590-7-61-7211-000 | E66: 300 | F66: 0 | I66: 0
B67: PRINTING | C67: 590-7-61-7215-000 | E67: 300 | F67: 500 | G67: 500 | H67: 500 | I67: 0
B68: BANK FEES | C68: 590-7-61-7219-000 | E68: 0 | F68: 0 | I68: 0
B69: GOV DEALS FEES | C69: 590-7-61-7219-100 | E69: 0 | F69: 0 | I69: 0
B70: SMALL TOOLS | C70: 590-7-61-7220-000 | E70: 2000 | F70: 1000 | G70: 1000 | H70: 1000 | I70: 0
B71: RENTAL EQUIPMENT | C71: 590-7-61-7221-000 | E71: 5000 | F71: 5000 | G71: 3500 | H71: 3000 | I71: -500
I72: 0
B73: Supplies | E73: =SUM(E54:E72) -> 44100 | F73: 42500 | G73: =SUM(G55:G72) -> 39000 | H73: =SUM(H55:H72) -> 40000 | I73: 1000
I74: 0
B75: CHEMICALS | C75: 590-7-61-7228-000 | E75: 0 | F75: 0 | I75: =H75-G75 -> 0
B76: CHEMICALS | C76: 590-7-62-7228-000 | E76: 25000 | F76: 20000 | G76: 10000 | H76: 10000 | I76: 0
I77: 0
B78: Sewer Supplies | E78: =SUM(E74:E77) -> 25000 | F78: 20000 | G78: =SUM(G75:G77) -> 10000 | H78: =SUM(H76:H77) -> 10000 | I78: 0
I79: 0
B80: SYSTEM M&R | C80: 590-7-61-7250-000 | E80: 35000 | F80: 10000 | G80: 15000 | H80: 20000 | I80: 5000
B81: WATER UTILITY | C81: 590-7-61-7301-100 | E81: 0 | F81: 0 | I81: 0
B82: TELEPHONES | C82: 590-7-61-7310-000 | E82: 1500 | F82: 2000 | G82: 3500 | H82: 4000 | I82: 500
B83: AIR CARD | C83: 590-7-61-7311-000 | E83: 400 | F83: 600 | G83: 800 | H83: 800 | I83: 0
B84: PAGERS | C84: 590-7-61-7319-000 | E84: 0 | F84: 0 | I84: 0
B85: LEGAL FEES | C85: 590-7-61-7401-000 | E85: 2500 | F85: 2500 | G85: 2500 | H85: 2500 | I85: 0
B86: BOOKKEEPING FEES | C86: 590-7-61-7402-000 | E86: 4000 | F86: 5000 | G86: 1200 | H86: 2000 | I86: 800
B87: AUDIT FEES | C87: 590-7-61-7403-000 | E87: 4000 | F87: 3000 | G87: 1750 | H87: 1750 | I87: 0
B88: PLANNER FEES | C88: 590-7-61-7404-000 | E88: 0 | I88: 0
B89: ENGINEER FEES | C89: 590-7-61-7405-000 | E89: 5000 | F89: 3000 | G89: 2000 | H89: 1500 | I89: -500
B90: SOFTWARE SUPPORT | C90: 590-7-61-7406-000 | E90: 4000 | F90: 3000 | G90: 5000 | H90: 5000 | I90: 0
B91: IT SUPPORT | C91: 590-7-61-7407-000 | E91: 4000 | F91: 3000 | G91: 1000 | H91: 4000 | I91: 3000
B92: CONSULTANT FEES | C92: 590-7-61-7408-000 | E92: 0 | F92: 0 | I92: 0
B93: STORAGE FEES | C93: 590-7-61-7409-000 | E93: 0 | I93: 0
B94: INSURANCE | C94: 590-7-61-7410-000 | E94: 0 | F94: 0 | I94: 0
B95: ADVERTISING | C95: 590-7-61-7415-000 | E95: 500 | F95: 500 | G95: 500 | H95: 200 | I95: -300
B96: CREDIT CARD FEES | C96: 590-7-61-7440-000 | E96: 0 | F96: 0 | I96: 0
B97: CREDIT CARD FEES | C97: 590-7-61-7440-100 | E97: 200 | F97: 0 | G97: 0 | I97: 0
B98: SPECIAL EVENTS | C98: 590-7-61-7480-000 | E98: 500 | F98: 0 | I98: 0
B99: BAD DEBT EXPENSE | C99: 590-7-61-7490-000 | E99: 0 | F99: 0 | I99: 0
B100: UTILITY RATE STUDY | I100: 0
B101: CVFD DONATIONS | C101: 590-7-61-7611-000 | E101: 0 | F101: 0 | I101: 0
I102: 0
B103: Administration | E103: =SUM(E79:E102) -> 61600 | F103: 32600 | G103: =SUM(G80:G102) -> 33250 | H103: =SUM(H80:H102) -> 41750 | I103: 8500
I104: 0
B105: PHONE SYSTEM (1/03) | C105: 590-7-61-7620-000 | E105: 0 | F105: 0 | I105: 0
B106: COPIER (3-09) | C106: 590-7-61-7621-000 | E106: 500 | F106: 500 | G106: 500 | H106: 400 | I106: -100
B107: PHONE SYSTEM | C107: 590-7-61-7622-000 | E107: 0 | F107: 0 | I107: 0
B108: ELECTRICITY | C108: 590-7-62-7301-000 | E108: 12681 | F108: 36500 | G108: 36500 | H108: 36500 | I108: 0
B109: TELEPHONE | C109: 590-7-62-7310-000 | E109: 1500 | F109: 2500 | G109: 1000 | H109: 1000 | I109: 0
I110: 0
B111: Utilities | E111: =SUM(E104:E110) -> 14681 | F111: 39500 | G111: =SUM(G105:G110) -> 38000 | H111: =SUM(H106:H110) -> 37900 | I111: -100
I112: 0
B113: UTILITY BILLING SYSTEM SOFTWAR | C113: 590-7-61-7637-000 | E113: 0 | F113: 850 | G113: 850 | H113: 500 | I113: -350
B114: JET MACHINE (12-08) | C114: 590-7-61-7641-000 | E114: 0 | F114: 0 | I114: 0
B115: NEW TRUCKS - F150 | C115: 590-7-61-7639-000 | E115: 0 | F115: 0 | H115: 23000 | I115: 23000
B116: FURNITURE | C116: 590-7-61-7702-000 | E116: 1000 | F116: 1000 | G116: 500 | H116: 500 | I116: 0
B117: BUILDING IMPROVEMENTS - roof | C117: 590-7-61-7703-000 | E117: 0 | F117: 0 | H117: 10000 | I117: 10000
B118: EQUIPMENT EXPENSE | C118: 590-7-61-7705-000 | E118: 2500 | F118: 2500 | G118: 1000 | H118: 500 | I118: -500
B119: CODE RED EMERGENCY PROGRAM | C119: 590-7-61-7705-100 | E119: 0 | F119: 0 | H119: 1500 | I119: 1500
B120: LEASE-3/4 TON DUMP TRUCK | C120: 590-7-61-7706-000 | E120: 0 | F120: 0 | I120: 0
B121: LEASE PURCHASE-DELL COMPUTER | C121: 590-7-61-7706-050 | E121: 0 | F121: 0 | I121: 0
B122: RADIOS | C122: 590-7-61-7707-000 | E122: 0 | F122: 0 | I122: 0
B123: NETWORKING | C123: 590-7-61-7715-000 | E123: 0 | F123: 0 | I123: 0
B124: W & WW IMPACT STUDIES | C124: 590-7-61-7740-000 | E124: 0 | F124: 0 | I124: 0
C125: 590-7-61-7790-000 | E125: 0 | F125: 0 | I125: 0
C126: 590-7-61-7790-010 | E126: 0 | F126: 0 | I126: 0
B127: INTERCEPTOR EASTMENTS | C127: 590-7-61-7791-000 | E127: 0 | F127: 0 | I127: 0
B128: CONTRACT LABOR | C128: 590-7-61-8180-000 | E128: 10000 | F128: 10000 | G128: 10000 | H128: 10000 | I128: 0
B129: EQUIPMENT USE | C129: 590-7-61-9400-000 | E129: 0 | F129: 1500 | G129: 0 | I129: 0
B130: SHOP REIMBURSEMENT | C130: 590-7-62-7205-000 | E130: 0 | F130: 0 | I130: 0
B131: TIRES | C131: 590-7-62-7208-000 | E131: 800 | F131: 2500 | G131: 1000 | H131: 1000 | I131: 0
B132: MAJOR VEHICLE REPAIR | C132: 590-7-62-7209-000 | E132: 2000 | F132: 2000 | G132: 1500 | H132: 1500 | I132: 0
B133: EQUIPMENT REPAIR (WWTP) | C133: 590-7-62-7210-000 | E133: 2000 | F133: 800 | G133: 800 | H133: 800 | I133: 0
B134: SMALL TOOLS | C134: 590-7-62-7220-000 | E134: 1500 | F134: 2000 | G134: 1500 | H134: 1300 | I134: -200
B135: RENTAL EQUIPMENT | C135: 590-7-62-7221-000 | E135: 1000 | F135: 1000 | G135: 1000 | H135: 500 | I135: -500
B136: BUILDING MAINTENANCE | C136: 590-7-62-7230-000 | E136: 0 | F136: 0 | I136: 0
B137: SYSTEM M&R | C137: 590-7-62-7250-000 | E137: 0 | F137: 0 | I137: 0
B138: SYSTEM M&R | C138: 590-7-62-7251-000 | E138: 20000 | F138: 10000 | G138: 15000 | H138: 15000 | I138: 0
B139: SLUDGE COLLECTION | C139: 590-7-62-7428-000 | E139: 0 | F139: 0 | I139: =H139-G139 -> 0
B140: INSPECTIONS | C140: 590-7-62-7440-000 | E140: 3000 | F140: 3000 | G140: 2500 | H140: 2500 | I140: 0
B141: ANALYSIS | C141: 590-7-62-7441-000 | E141: 0 | F141: 0 | I141: 0
B142: DEBT SERVICE | C142: 590-7-62-7600-000 | E142: 0 | F142: 0 | I142: 0
B143: CONTRACTUAL SERVICES | C143: 590-7-62-8180-000 | E143: 0 | F143: 0 | I143: 0
B144: EQUIPMENT USE | C144: 590-7-62-9400-000 | E144: 0 | F144: 0 | I144: 0
B145: SHOP REIMBURSEMENT | C145: 590-7-63-7205-000 | E145: 0 | F145: 0 | I145: 0
B146: TIRES | C146: 590-7-63-7208-000 | E146: 0 | F146: 0 | I146: 0
B147: MAJOR VEHICLE REPAIR | C147: 590-7-63-7209-000 | E147: 0 | F147: 0 | I147: 0
B148: EQUIPMENT REPAIR | C148: 590-7-63-7210-000 | E148: 0 | F148: 0 | I148: 0
B149: SMALL TOOLS | C149: 590-7-63-7220-000 | E149: 0 | F149: 0 | I149: 0
B150: RENTAL EQUIPMENT | C150: 590-7-63-7221-000 | E150: 0 | F150: 0 | I150: 0
B151: CHEMICALS WWC | C151: 590-7-63-7228-000 | E151: 0 | F151: 0 | I151: 0
B152: BUILDING MAINTENANCE | C152: 590-7-63-7230-000 | E152: 0 | F152: 0 | I152: 0
B153: WILLOWLAKE SEWER CONSTRUCTION | C153: 590-7-63-7250-000 | E153: 0 | F153: 0 | G153: 50000 | H153: 500000 | I153: 450000
B154: ELECTRICITY | C154: 590-7-63-7301-000 | E154: 0 | F154: 0 | I154: 0
B155: TELEPHONE | C155: 590-7-63-7310-000 | E155: 0 | F155: 0 | I155: 0
B156: SLUDGE COLLECTION | C156: 590-7-63-7428-000 | E156: 0 | F156: 0 | I156: 0
B157: INSPECTION | C157: 590-7-63-7440-000 | E157: 0 | F157: 0 | I157: 0
B158: ANALYSIS SERV | C158: 590-7-63-7441-000 | E158: 0 | F158: 0 | I158: 0
B159: CONTRACTUAL SERVICES | C159: 590-7-63-8180-000 | E159: 120605 | F159: 163000 | G159: 163000 | H159: 163000 | I159: 0
C160: 590-7-63-8190-000 | F160: 0 | I160: 0
B161: JET MACHINE (12-08) | C161: 590-7-90-7641-000 | E161: 0 | F161: 0 | I161: 0
I162: 0
B163: Repairs & Maintenance | E163: =SUM(E112:E162) -> 164405 | F163: 200150 | G163: =SUM(G113:G162) -> 248650 | H163: =SUM(H113:H162) -> 731600 | I163: 482950
B164: 2004 SERIES-CO REFUNDED BY: | I164: 0
B165: DS INT 2013 SERIES | C165: 590-7-90-7606-000 | E165: 82793 | F165: 70581 | G165: 37736 | H165: 33271 | I165: -4465
B166: FIRST STATE BANK ATHENS | C166: 590-7-90-7606-005 | E166: 0 | F166: 0 | G166: 0 | I166: 0
B167: DS INT - 2004 SERIES - GO | C167: 590-7-90-7656-000 | E167: 10276 | F167: 4221 | G167: 1560 | I167: -1560
B168: ANB INT - F150 | C168: 590-7-90-7657-400 | E168: 0 | F168: 0 | I168: 0
B169: Incode | C169: 590-7-90-7657-200 | E169: 98 | F169: 98 | G169: 0 | H169: 0 | I169: 0
B170: DS INT - 2010 SERIES | C170: 590-7-90-7657-550 | E170: 0 | F170: 0 | G170: 0 | H170: 0 | I170: 0
B171: NEW BACKHOE | C171: 590-7-90-7657-450 | E171: 0 | F171: 0 | I171: 0
B172: Bond 2010 - INT | C172: 590-7-99-7657-550 | E172: 0 | F172: 0 | I172: 0
B173: DS INTEREST | C173: 590-7-61-7606-000 | E173: 0 | F173: 0 | I173: 0
I174: 0
B175: Interest on Long-Term Debt | E175: =SUM(E165:E173) -> 93167 | F175: 74900 | G175: =SUM(G165:G173) -> 39296 | H175: =SUM(H165:H173) -> 33271 | I175: -6025
I176: 0
B177: Total Expenses | E177: =E53+E73+E78+E103+E111+E163+E175 -> 623181.8992 | F177: 672426 | G177: =G53+G73+G78+G103+G111+G163+G175 -> 657253 | H177: =H53+H73+H78+H103+H111+H163+H175 -> 1143808 | I177: 486555
A178: Net Revenue Before Depreciation | E178: =E27-E177 -> 219165.1008 | F178: 169921 | G178: =G27-G177 -> 165838 | H178: =H27-H177 -> -9801 | I178: -175639
I179: 0
B180: DEPRECIATION EXPENSE | C180: 590-7-99-8000-000 | F180: 0 | I180: 0
B181: AMORTIZATION EXPENSE | C181: 590-7-99-8101-000 | F181: 0 | I181: 0
I182: 0
B183: Depreciation | E183: =SUM(E179:E182) -> 0 | F183: 0 | G183: 0 | H183: 0 | I183: 0
I184: 0
A185: Net Revenue | E185: =E178-E183 -> 219165.1008 | F185: 169921 | G185: =G178-G183 -> 165838 | H185: =H178-H183 -> -9801 | I185: -175639
I186: 0
I187: 0
A188: Grant Revenue | F188: 0 | G188: 0 | H188: 0 | I188: 0
I189: 0
I190: 0
A191: Contributions | F191: 0 | G191: 0 | H191: 0 | I191: 0
I192: 0
B193: TRANSFER OUT TO GF | C193: 590-7-99-6000-000 | F193: 0 | I193: 0
B194: TRANSFER OUT | C194: 590-7-61-7602-000 | F194: 0 | I194: 0
B195: DS-BOND FEES | C195: 590-7-61-7607-000 | F195: 0 | I195: 0
B196: TRANSFER IN/OUT | C196: 590-6176-000 | F196: 0 | I196: 0
A197: Transfers | F197: 0 | G197: 0 | H197: 0 | I197: 0
I198: 0
A199: Increase(Decrease) in net assets | E199: =E185+E188+E197+E191 -> 219165.1008 | F199: 169921 | G199: =G178+G188+G197 -> 165838 | H199: 210193 | I199: 44355
I200: 0
B201: DS PRNC-2004 SER.-CO NOW SERS 2013 | C201: 590-7-90-7605-000 | E201: 62100 | F201: 64400 | G201: 15000 | H201: 94300 | I201: 79300
B202: FIRST STATE BANK ATHENS | C202: 590-7-90-7605-005 | E202: 13426 | F202: 0 | I202: 0
B203: DS PRINC - 2004 SERIES - GO | C203: 590-7-90-7655-000 | E203: 71300 | F203: 73600 | G203: 85000 | I203: =H203-G203 -> -85000
... 79 more rows

Sheet Report-Water
A1: City of Crandall, Texas
A2: Budget - Water Department
A3: Budget 2015-2016
H6: Proposed
E7: 2012-13 | F7: 2013-14 | G7: 2014-15 | H7: 2015-16 | I7: Difference
A8: Revenues:
B9: I&S TAX | C9: 591-5102-200 | E9: 0 | F9: 0 | G9: 0 | H9: 0 | I9: =G9-F9 -> 0
B10: WATER TAP FEES | C10: 591-5106-000 | E10: 9339 | F10: 9339 | G10: 9000 | H10: 8000 | I10: =H10-G10 -> -1000
B11: WATER METER SALES | C11: 591-5107-000 | E11: 0 | F11: 0 | G11: 0 | H11: 0 | I11: =H11-G11 -> 0
B12: WATER METER SALES | C12: 591-7-00-5107-000 | E12: 0 | F12: 0 | G12: 0 | H12: 0 | I12: 0
B13: WATER REVENUE | C13: 591-5108-000 | E13: 1165800 | F13: 1200774 | G13: 1200000 | H13: 1100000 | I13: -100000
B14: CONNECT FEES | C14: 591-5109-000 | E14: 19767 | F14: 19767 | G14: 20360 | H14: 18000 | I14: -2360
B15: PENALTIES | C15: 591-5120-000 | E15: 33155 | F15: 33155 | G15: 34149 | H15: 35000 | I15: 851
B16: NSF FEES | C16: 591-5121-000 | E16: 0 | F16: 0 | G16: 0 | H16: 0 | I16: 0
B17: SERVICE CALL FEE | C17: 591-5122-000 | E17: 0 | F17: 0 | G17: 0 | H17: 0 | I17: 0
B18: FIRE DEPT REIMB. | C18: 591-5125-000 | E18: 0 | F18: 0 | G18: 0 | H18: 0 | I18: 0
B19: TRANSFERS FROM RESERVE | C19: 591-5150-000 | E19: 0 | F19: 0 | G19: 0 | I19: 0
B20: CONTRIBUTIONS REVENUE | C20: 591-5160-000 | E20: 0 | F20: 0 | G20: 0 | H20: 0 | I20: 0
B21: REIMBURSEMENT CARTWRIGHT | C21: 591-5198-000 | E21: 0 | F21: 0 | G21: 0 | H21: 0 | I21: 0
B22: REIMBURSEMENT MABREY | C22: 591-5199-000 | E22: 0 | F22: 0 | G22: 0 | H22: 0 | I22: 0
B23: INTEREST - TEX-STAR | C23: 591-5201-000 | E23: 0 | F23: 0 | G23: 0 | H23: 0 | I23: 0
B24: TML-CONTR HOLIDAY CREDIT | C24: 591-5925-000 | E24: 0 | F24: 0 | G24: 0 | H24: 0 | I24: 0
I25: 0
B26: Water Revenue | E26: =SUM(E9:E25) -> 1228061 | F26: 1263035 | G26: =SUM(G10:G25) -> 1263509 | H26: =SUM(H10:H25) -> 1161000 | I26: -102509
I27: 0
B28: CREDIT CARD FEES | C28: 591-7-00-5131-000 | E28: 0 | F28: 0 | I28: 0
B29: INTEREST INCOME | C29: 591-5200-000 | E29: 0 | F29: 0 | I29: 0
B30: CREDIT CARD FEES | C30: 591-5131-000 | E30: 0 | F30: 0 | I30: 0
B31: DONATIONS - VFD | C31: 591-5149-000 | E31: 0 | F31: 0 | I31: 0
B32: MISC. REVENUE | C32: 591-5130-000 | E32: 8741.816 | F32: 0 | I32: 0
B33: Miscellaneous | E33: =SUM(E28:E32) -> 8741.816 | F33: 0 | G33: =F33*(1+G$5) -> 0 | H33: =G33*(1+H$5) -> 0 | I33: 0
B34: Total Revenues | E34: =E26+E33 -> 1236802.816 | F34: 1263035 | G34: =G26+G33 -> 1263509 | H34: =H26+H33 -> 1161000 | I34: =I26+I33 -> -102509
A36: Expenses:
B37: PUBLIC WORKS ADMINISTRATION | C37: 591-7-50-7000-999 | E37: 0 | F37: 0 | I37: =F37-G37 -> 0
B38: SALARIES | C38: 591-7-50-7101-000 | E38: 110158.5017 | F38: 140000 | G38: 130358.9 | H38: 130346 | I38: =H38-G38 -> -12.9
B39: OVERTIME | C39: 591-7-50-7102-000 | E39: 5000 | F39: 4500 | G39: 3000 | H39: 3000 | I39: =H39-G39 -> 0
B40: PAID TIME OFF | I40: 0
B41: BENEFITS | C41: 591-7-50-7105-000 | E41: 13199.68154 | F41: 21600 | G41: 22404 | H41: 22404 | I41: 0
B42: HSA EXPENSE | C42: 591-7-50-7105-100 | E42: 0 | F42: 0 | I42: 0
B43: MEDICARE | C43: 591-7-50-7106-000 | E43: 1399.9692 | F43: 2030 | G43: 1580 | H43: 1560 | I43: -20
B44: WORKERS COMP | C44: 591-7-50-7107-000 | E44: 4882 | F44: 5200 | G44: 5200 | H44: 5200 | I44: 0
B45: RETIREMENT | C45: 591-7-50-7108-000 | E45: 6806.7468 | F45: 12432 | G45: 10500 | H45: 10500 | I45: 0
B46: SOCIAL SECURITY | C46: 591-7-50-7109-000 | E46: 0 | F46: 0 | I46: 0
B47: UNEMPLOYMENT | C47: 591-7-50-7110-000 | E47: 0 | F47: 0 | I47: 0
B48: CM AUTO ALLOWANCE | C48: 591-7-50-7111-000 | E48: 0 | F48: 0 | I48: 0
B49: CM HOUSING ALLOWANCE | C49: 591-7-50-7111-100 | E49: 0 | F49: 0 | I49: 0
B50: CM INSURANCE ALLOWANCE | C50: 591-7-50-7111-200 | E50: 0 | F50: 0 | I50: 0
B51: ADM REIMB | C51: 591-7-50-7116-000 | E51: 0 | F51: 0 | I51: 0
B52: TUITION & TRAINING | C52: 591-7-50-7120-000 | E52: 6810 | F52: 3000 | G52: 2500 | H52: 2500 | I52: 0
B53: TRAVEL EXPENSE | C53: 591-7-50-7121-000 | E53: 1000 | F53: 500 | G53: 500 | H53: 400 | I53: -100
B54: UNIFORMS | C54: 591-7-50-7125-000 | E54: 3174 | F54: 3200 | G54: 3200 | H54: 3200 | I54: 0
B55: EMPLOYEE RECOGNITION | C55: 591-7-50-7150-000 | E55: 500 | F55: 300 | G55: 300 | H55: 300 | I55: 0
B56: 457 CONTRIBUTION | C56: 591-7-50-7151-000 | E56: 0 | F56: 0 | I56: 0
B57: FRANCHISE | E57: 71709.6815 | F57: 71709.6815 | G57: 71710 | H57: 71000 | I57: -710
B58: ECO DEV COORD - BEN | E58: 0 | F58: 0 | I58: 0
B59: ECO DEV COORD - SAL | E59: 0 | F59: 0 | I59: 0
B60: ECO DEV COORD - RETIRE | E60: 0 | F60: 0 | I60: 0
I61: 0
B62: Personnel | E62: =SUM(E37:E61) -> 224640.5807 | F62: 264471.6815 | G62: =SUM(G38:G61) -> 251252.9 | H62: =SUM(H38:H61) -> 250410 | I62: -842.9
I63: =F63-G63 -> 0
B64: CLERICAL SUPPLIES | C64: 591-7-50-7201-100 | E64: 0 | F64: 4000 | G64: 4000 | H64: 4000 | I64: 0
B65: OFFICE SUPPLIES- | C65: 591-7-50-7201-200 | E65: 1500 | F65: 0 | I65: 0
B66: SHOP SUPPLIES | C66: 591-7-50-7201-300 | E66: 0 | F66: 0 | I66: 0
B67: POSTAGE | C67: 591-7-50-7202-000 | E67: 3741 | F67: 4000 | G67: 4000 | H67: 4000 | I67: 0
B68: DUES & SUBSCRIPTIONS | C68: 591-7-50-7203-000 | E68: 0 | F68: 500 | G68: 500 | H68: 400 | I68: 0
B69: SHOP REIMBURSEMENT | C69: 591-7-50-7205-000 | E69: 0 | F69: 2500 | G69: 1500 | H69: 1000 | I69: 1000
B70: GAS-Supplies Water | C70: 591-7-50-7206-000 | E70: 14000 | F70: 14000 | G70: 14000 | H70: 14000 | I70: 0
B71: DIESEL-Supplies Water | C71: 591-7-50-7207-000 | E71: 2800 | F71: 1500 | G71: 1500 | H71: 1500 | I71: 0
B72: TIRES- Supplies Water | C72: 591-7-50-7208-000 | E72: 700 | F72: 0 | G72: 0 | I72: 0
B73: VEHICLE REPAIR | C73: 591-7-50-7209-000 | E73: 1500 | F73: 1000 | G73: 1000 | H73: 1000 | I73: 0
B74: SHOP SUPPLIES | C74: 591-7-50-7210-000 | E74: 0 | F74: 0 | I74: 0
B75: SHOP SUPPLIES | C75: 591-7-50-7210-100 | E75: 0 | F75: 0 | I75: 0
B76: NEWSLETTER | C76: 591-7-50-7211-000 | E76: 0 | F76: 0 | I76: 0
B77: PRINTING | C77: 591-7-50-7215-000 | E77: 350 | F77: 500 | G77: 800 | H77: 2000 | I77: =H77-G77 -> 1200
B78: BANK FEES | C78: 591-7-50-7219-000 | E78: 0 | F78: 0 | I78: =H78-G78 -> 0
B79: GOV DEALS FEES | C79: 591-7-50-7219-100 | E79: 0 | F79: 0 | I79: 0
B80: CHEMICALS | C80: 591-7-50-7228-000 | E80: 10000 | F80: 10000 | G80: 10000 | H80: 10000 | I80: 0
B81: BUILDING EXPENSE | C81: 591-7-50-7230-000 | E81: 0 | F81: 2000 | G81: 1000 | H81: 500 | I81: -500
B82: Supplies | E82: =SUM(E64:E81) -> 34591 | F82: 40000 | G82: =SUM(G64:G81) -> 38300 | H82: =SUM(H64:H81) -> 38400 | I82: 100
I83: 0
B84: INSPECTION | C84: 591-7-51-7491-000 | E84: 3000 | F84: 0 | G84: 1500 | H84: 1500 | I84: 0
B85: NTMWD-WATER | C85: 591-7-51-7495-000 | E85: 393020 | F85: 393020 | G85: 432300 | H85: 435000 | I85: 2700
B86: NTMWD-O&M | C86: 591-7-51-7496-000 | E86: 42000 | F86: 42000 | G86: 46200 | H86: 46000 | I86: -200
B87: WATER TOWER FUND | C87: 591-7-51-7608-000 | E87: 0 | F87: 0 | I87: 0
I88: 0
B89: Water Supplies | E89: =SUM(E84:E88) -> 438020 | F89: 435020 | G89: =SUM(G84:G88) -> 480000 | H89: =SUM(H84:H88) -> 482500 | I89: 2500
I90: 0
B91: WATER UTILITY | C91: 591-7-50-7301-100 | E91: 0 | F91: 900 | G91: 900 | H91: 900 | I91: =H91-G91 -> 0
B92: TELEPHONES | C92: 591-7-50-7310-000 | E92: 850 | F92: 800 | G92: 0 | H92: 1500 | I92: 1500
B93: AIR CARD | C93: 591-7-50-7311-000 | E93: 300 | F93: 600 | G93: 600 | H93: 600 | I93: 0
B94: PAGERS | C94: 591-7-50-7319-000 | E94: 0 | F94: 0 | I94: 0
B95: PHONE SYSTEM (1-03) | C95: 591-7-50-7620-000 | E95: 0 | F95: 0 | I95: 0
B96: COPIER (3/09) | C96: 591-7-50-7621-000 | E96: 913 | F96: 0 | I96: 0
B97: PHONE SYSTEM | C97: 591-7-50-7622-000 | E97: 0 | F97: 0 | I97: 0
B98: UTILITY BILLING SOFTWARE (1-06 | C98: 591-7-50-7637-000 | E98: 0 | F98: 0 | I98: 0
B99: ELECTRICITY | C99: 591-7-51-7301-000 | E99: 13577 | F99: 17350 | G99: 17350 | H99: 17350 | I99: 0
B100: NATURAL GAS | C100: 591-7-51-7303-000 | E100: 1600 | F100: 0 | G100: 1500 | H100: 2000 | I100: 500
B101: TELEPHONE | C101: 591-7-51-7310-000 | E101: 900 | F101: 2500 | G101: 3300 | H101: 3300 | I101: 0
B102: TELEMETRY | C102: 591-7-51-7311-000 | E102: 0 | F102: 0 | I102: =F102-G102 -> 0
I103: =F103-G103 -> 0
B104: Utilities | E104: =SUM(E91:E103) -> 18140 | F104: 22150 | G104: =SUM(G91:G103) -> 23650 | H104: =SUM(H91:H103) -> 25650 | I104: =F104-G104 -> -1500
I105: =F105-G105 -> 0
B106: LEGAL FEES | C106: 591-7-50-7401-000 | E106: 5000 | F106: 4500 | G106: 2500 | H106: 2000 | I106: =H106-G106 -> -500
B107: BOOKKEEPING FEES | C107: 591-7-50-7402-000 | E107: 8856 | F107: 6000 | G107: 1200 | H107: 3000 | I107: 1800
B108: AUDIT FEES | C108: 591-7-50-7403-000 | E108: 7790 | F108: 0 | G108: 1800 | H108: 2000 | I108: 200
B109: UTILITY SALES TAX | C109: 591-7-50-7403-100 | E109: 2000 | F109: 0 | I109: 0
B110: PLANNER FEES | C110: 591-7-50-7404-000 | E110: 0 | F110: 0 | I110: 0
B111: ENGINEER FEES | C111: 591-7-50-7405-000 | E111: 0 | F111: 0 | I111: 0
B112: SOFTWARE SUPPORT | C112: 591-7-50-7406-000 | E112: 2600 | F112: 3000 | G112: 3500 | H112: 4500 | I112: 1000
B113: IT SUPPORT | C113: 591-7-50-7407-000 | E113: 3500 | F113: 3500 | G113: 3500 | H113: 4000 | I113: 500
B114: CONSULTANT FEES | C114: 591-7-50-7408-000 | E114: 0 | F114: 0 | I114: 0
B115: STORAGE FEES | C115: 591-7-50-7409-000 | E115: 0 | F115: 500 | G115: 500 | H115: 500 | I115: 0
B116: INSURANCE | C116: 591-7-50-7410-000 | E116: 7450 | F116: 7450 | G116: 7450 | H116: 8200 | I116: 750
B117: ADVERTISING | C117: 591-7-50-7415-000 | E117: 625 | F117: 200 | G117: 200 | H117: 200 | I117: 0
B118: =UPPER("Solid Waste Collection") -> SOLID WASTE COLLECTION | C118: 591-7-50-7427-000 | I118: 0
B119: CREDIT CARD FEES | C119: 591-7-50-7440-000 | E119: 200 | F119: 0 | G119: 0 | I119: 0
B120: SPECIAL EVENTS | C120: 591-7-50-7480-000 | E120: 400 | F120: 0 | I120: 0
B121: SEAGOVILLE WATER STUDY | E121: 0 | F121: 41200 | G121: 0 | I121: 0
B122: BAD DEBT EXPENSE | C122: 591-7-50-7490-000 | E122: 0 | F122: 0 | I122: 0
B123: Administration | E123: =SUM(E106:E122) -> 38421 | F123: 66350 | G123: =SUM(G106:G122) -> 20650 | H123: =SUM(H106:H122) -> 24400 | I123: 3750
I124: =F124-G124 -> 0
B125: DS-BOND FEES | C125: 591-7-50-7607-000 | E125: 0 | F125: 0 | I125: =H125-G125 -> 0
B126: CVFD DONATIONS | C126: 591-7-50-7611-000 | E126: 0 | F126: 0 | I126: 0
B127: FURNITURE | C127: 591-7-50-7702-000 | E127: 1000 | F127: 0 | I127: 0
B128: BLDG. IMPROVEMENTS - New Roof | C128: 591-7-50-7703-000 | E128: 0 | F128: 1000 | G128: 1000 | H128: 10000 | I128: 9000
B129: EQUIPMENT | C129: 591-7-50-7705-000 | E129: 2000 | F129: 1000 | G129: 1000 | H129: 1000 | I129: 0
B130: CODE RED EMERGENCY PRO | C130: 591-7-50-7705-100 | E130: 0 | F130: 0 | H130: 1500 | I130: 1500
B131: LEASE PURCH-DUMP TRUCK | C131: 591-7-50-7706-000 | E131: 0 | F131: 0 | I131: 0
B132: LEASE PURCHASE-DELL COMPUTER | C132: 591-7-50-7706-050 | E132: 0 | F132: 0 | I132: 0
B133: RADIOS | C133: 591-7-50-7707-000 | E133: 0 | F133: 0 | I133: 0
B134: NETWORKING | C134: 591-7-50-7715-000 | E134: 0 | F134: 0 | I134: 0
B135: WATER & WW IMPACT STUDIES | C135: 591-7-50-7740-000 | E135: 0 | F135: 0 | I135: 0
B136: GRANT EXPENSE | C136: 591-7-50-7750-000 | E136: 0 | F136: 0 | I136: 0
B137: CDBG GRANT MATCH-DALLAS EAST | C137: 591-7-50-7790-000 | E137: 0 | F137: 0 | H137: 27500 | I137: 27500
B138: TCDP GRANT MATCH ('07)('08 25K | C138: 591-7-50-7790-010 | E138: 0 | F138: 0 | I138: 0
B139: INTERCEPTOR EASEMENTS | C139: 591-7-50-7791-000 | E139: 0 | F139: 0 | I139: 0
B140: CONTRACTUAL SERVICES | C140: 591-7-50-7818-000 | E140: 0 | F140: 0 | I140: 0
B141: CONTRACT LABOR | C141: 591-7-50-8180-000 | E141: 16520 | F141: 0 | I141: 0
B142: EQUIPMENT USE | C142: 591-7-50-9400-000 | E142: 0 | F142: 0 | I142: 0
B143: WATER WORKS | C143: 591-7-51-7000-999 | E143: 0 | F143: 1000 | G143: 1000 | H143: 0 | I143: -1000
B144: SHOP REIMBURSEMENT | C144: 591-7-51-7205-000 | E144: 0 | F144: 2000 | G144: 1000 | H144: 1000 | I144: 0
B145: TIRES-Repair & Maintenance Water | C145: 591-7-51-7208-000 | E145: 1500 | F145: 2000 | G145: 1500 | H145: 1000 | I145: -500
B146: VEHICLE REPAIR | C146: 591-7-51-7209-000 | E146: 2500 | F146: 1000 | G146: 1000 | H146: 1000 | I146: 0
B147: EQUIP. REPAIR | C147: 591-7-51-7210-000 | E147: 2500 | F147: 500 | G147: 500 | H147: 500 | I147: 0
B148: SMALL TOOLS | C148: 591-7-51-7220-000 | E148: 1000 | F148: 0 | I148: 0
B149: CHEMICALS | C149: 591-7-51-7228-000 | E149: 1000 | F149: 1000 | G149: 0 | H149: 0 | I149: 0
B150: BLDG. MAINTENANCE | C150: 591-7-51-7230-000 | E150: 0 | F150: 1500 | G150: 1500 | H150: 1000 | I150: -500
B151: SYSTEM M&R | C151: 591-7-51-7251-000 | E151: 22515 | F151: 20000 | G151: 20000 | H151: 20000 | I151: 0
B152: WATER METERS | C152: 591-7-51-7252-000 | E152: 2000 | F152: 3000 | G152: 2500 | H152: 4000 | I152: 1500
B153: FIRE HYDRANTS | C153: 591-7-51-7253-000 | E153: 3300 | F153: 2000 | G153: 2000 | H153: 1000 | I153: -1000
B154: EQUIPMENT USE | C154: 591-7-51-9400-000 | E154: 0 | F154: 0 | I154: 0
B155: WORK TRUCK F150 | C155: 591-7-51-7639-100 | E155: 0 | F155: 0 | H155: 23000 | I155: 23000
B156: WORK TRUCK | C156: 591-7-51-7639-200 | E156: 6934 | F156: 0 | I156: 0
B157: CREW TRUCK | C157: 591-7-51-7639-300 | E157: 0 | F157: 0 | I157: 0
B158: AUTO METER SYSTEM | C158: 591-7-51-7642-000 | E158: 80777 | F158: 0 | I158: 0
I159: 0
B160: Repairs & Maintenance | E160: =SUM(E124:E159) -> 143546 | F160: 36000 | G160: =SUM(G125:G159) -> 33000 | H160: =SUM(H125:H159) -> 92500 | I160: 59500
I161: =F161-G161 -> 0
B162: TOWER INSPECTION | C162: 591-7-51-7709-000 | E162: 0 | F162: 0 | I162: =F162-G162 -> 0
B163: UTILITY BILLING SOFTWARE | C163: 591-7-51-7723-000 | E163: 0 | F163: 0 | I163: =F163-G163 -> 0
B164: 3/4 OR 1-TON TRUCK | C164: 591-7-51-7725-000 | E164: 0 | F164: 0 | I164: =F164-G164 -> 0
B165: WEEDEATER | C165: 591-7-51-7726-000 | E165: 0 | F165: 0 | I165: =F165-G165 -> 0
B166: WATER TOWER PARTICIPATION | C166: 591-7-51-7741-000 | E166: 0 | F166: 0 | I166: =F166-G166 -> 0
B167: CONTRACTUAL SERVICES | C167: 591-7-51-8180-000 | E167: 0 | F167: 0 | I167: 0
B168: WASTE WATER COLLECTION | C168: 591-7-61-7000-999 | E168: 0 | F168: 0 | I168: 0
B169: SHOP REIMBURSEMENT | C169: 591-7-61-7205-000 | E169: 0 | F169: 0 | I169: 0
B170: TIRES | C170: 591-7-61-7208-000 | E170: 0 | F170: 0 | I170: 0
B171: EQUIP REPAIR | C171: 591-7-61-7210-000 | E171: 0 | F171: 0 | I171: 0
B172: SHOP SUPPLIES | C172: 591-7-61-7210-100 | E172: 0 | F172: 0 | I172: 0
B173: CHEMICALS | C173: 591-7-61-7228-000 | E173: 0 | F173: 0 | I173: 0
B174: SYSTEM M&R | C174: 591-7-61-7250-000 | E174: 0 | F174: 0 | I174: 0
B175: CREDIT CARD FEES | C175: 591-7-61-7440-100 | E175: 0 | F175: 0 | I175: 0
B176: JET MACHINE | C176: 591-7-61-7641-000 | E176: 0 | F176: 0 | I176: 0
B177: WASTEWATER TREATMENT PLANT | C177: 591-7-62-7000-999 | E177: 0 | F177: 0 | I177: 0
B178: EQUIPMENT REPAIR (WWTP) | C178: 591-7-62-7210-000 | E178: 0 | F178: 0 | I178: 0
B179: CHEMICALS | C179: 591-7-62-7228-000 | E179: 0 | F179: 0 | I179: 0
B180: ELECTRICITY | C180: 591-7-62-7301-000 | E180: 0 | F180: 0 | I180: 0
B181: TELEPHONE | C181: 591-7-62-7310-000 | E181: 0 | F181: 0 | I181: 0
B182: SLUDGE COLLECTION | C182: 591-7-62-7428-000 | E182: 0 | F182: 0 | I182: 0
B183: INSPECTION | C183: 591-7-62-7440-000 | E183: 0 | F183: 0 | I183: 0
B184: ANALYSIS | C184: 591-7-62-7441-000 | E184: 0 | F184: 0 | I184: 0
I185: 0
B186: Miscellaneous | E186: =SUM(E161:E185) -> 0 | F186: 0 | G186: =F186*(1+G$5) -> 0 | H186: =G186*(1+H$5) -> 0 | I186: 0
B187: 2004 SERIES-CO REFUNDED BY: | I187: 0
B188: DS INT 2013 SERIES | C188: 591-7-50-7606-000 | E188: 82793 | F188: 82857 | G188: 37736 | H188: 39057 | I188: =H188-G188 -> 1321
B189: FIRST STATE BANK ATHENS | C189: 591-7-90-7605-005 | E189: 329 | F189: 329 | I189: =H189-G189 -> 0
B190: DS INT - 2004 SERIES - GO | C190: 591-7-50-7656-000 | E190: 10276 | F190: 4955 | G190: 1560 | I190: -1560
B191: ANB INT - Master Meters | C191: 591-7-90-7657-400 | E191: 1411 | F191: 0 | I191: 0
B192: Incode | C192: 591-7-90-7657-200 | E192: 98 | F192: 98 | G192: 0 | I192: 0
B193: Future Debt | C193: 591-7-90-7657-450 | E193: 0 | F193: 0 | I193: 0
I194: 0
B195: Interest on Long-Term Debt | E195: =SUM(E188:E193) -> 94907 | F195: 88239 | G195: =SUM(G188:G193) -> 39296 | H195: =SUM(H188:H194) -> 39057 | I195: -239
I196: 0
B197: Total Expenses | E197: =E62+E82+E89+E104+E123+E160+E186+E195 -> 992265.5807 | F197: 952230.6815 | G197: =G62+G82+G89+G104+G123+G160+G186+G195 -> 886148.9 | H197: =H62+H82+H104+H123+H160+H186+H195+G89 -> 950417 | I197: 66081.7815
A198: Net Revenue Before Depreciation | E198: =E34-E197 -> 244537.2353 | F198: 310804.3185 | G198: =G34-G197 -> 377360.1 | I198: -66555.7815
I199: 0
B200: DEPRECIATION EXPENSE | C200: 591-7-99-8000-000 | F200: 0 | I200: 0
B201: AMORTIZATION EXPENSE | C201: 591-7-99-8010-000 | F201: 0 | I201: 0
I202: 0
B203: Depreciation | E203: =SUM(E200:E202) -> 0 | F203: 0 | G203: 0 | I203: 0
... 129 more rows

Sheet Report-SolidWaste
A1: City of Crandall, Texas
A2: Budget - Solid Waste Department
A3: 2015-2016
H6: Poposed
E7: 2013 | F7: 2014 | G7: =F7+1 -> 2015 | H7: =G7+1 -> 2016
A8: Revenues:
B9: SALES TAX | C9: 596-5103-100 | F9: 7234 | G9: 7233.76 | H9: 7400 | I9: =H9-G9 -> 166.24
B10: ADMIN FEE | C10: 596-5112-500 | F10: 0 | I10: =H10-G10 -> 0
B11: SOLID WASTE COLLECTION | C11: 596-5115-000 | E11: 128000 | F11: 128000 | G11: 128000 | H11: 128000 | I11: 0 | O11: =SUM(H11:K11) -> 128000
B12: SOLID WASTE COLL - COMMERCIAL | C12: 596-5115-100 | E12: 4000 | F12: 4000 | G12: 4000 | H12: 4000 | I12: 0 | L12: =SUM(H12:K12) -> 4000
B13: PENALTY | C13: 596-5120-000 | F13: 0 | I13: 0
B14: Solid Waste Revenue | E14: =SUM(E9:E13) -> 132000 | F14: 132000 | I14: 0
B15: Total Revenues | E15: =E14 -> 132000 | F15: 132000 | G15: =SUM(G9:G14) -> 139233.76 | H15: =SUM(H9:H14) -> 139400 | I15: 166.24 | L15: =SUM(H15:K15) -> 139566.24
I16: 0
A17: Expenses: | I17: 0
I18: 0
B19: SALARIES & WAGES | C19: 596-7-20-7101-000 | E19: 14965.845 | F19: 13000 | G19: 13250.8 | H19: 11115 | I19: -2135.8
B20: BENEFITS | C20: 596-7-20-7105-000 | E20: 3004.285872 | F20: 4000 | G20: 8298 | H20: 2500 | I20: -5798
B21: PAID TIME OFF | I21: 0
B22: MEDICARE | C22: 596-7-20-7106-000 | E22: 204.5482 | F22: 200 | G22: 400 | H22: 200 | I22: -200
B23: WORKERS COMPENSATION | C23: 596-7-20-7107-000 | E23: 0 | F23: 0 | I23: 0
B24: RETIREMENT | C24: 596-7-20-7108-000 | E24: 994.5273 | F24: 1183 | G24: 3064 | H24: 1203 | I24: -1861
B25: FICA | C25: 596-7-20-7109-000 | E25: 0 | F25: 0 | I25: 0
I26: 0
B27: Personnel | E27: =SUM(E18:E26) -> 19169.20637 | F27: 18383 | G27: =SUM(G19:G26) -> 25012.8 | H27: =SUM(H19:H26) -> 15018 | I27: -9994.8
G28: =F28*(1+G$5) -> 0 | I28: 0
B29: CLERICAL SUPPLIES | C29: 596-7-53-7201-100 | E29: 0 | F29: 0 | G29: 0 | I29: 0
B30: OPERATING SUPPLIES | C30: 596-7-53-7212-000 | E30: 0 | F30: 500 | G30: 500 | H30: 500 | I30: 0
G31: 0 | I31: 0
B32: Supplies | E32: =SUM(E28:E31) -> 0 | F32: 500 | G32: 500 | H32: =SUM(H29:H31) -> 500 | I32: 0
G33: 0 | I33: 0
B34: LEGAL FEES | C34: 596-7-53-7401-000 | E34: 0 | F34: 500 | G34: 500 | H34: 500 | I34: 0
B35: BOOKKEEPING FEES | C35: 596-7-53-7402-000 | E35: 648 | F35: 648 | G35: 0 | I35: 0
B36: AUDIT | C36: 596-7-53-7403-000 | E36: 570 | F36: 570 | G36: 570 | H36: 500 | I36: -70
G37: =F37*(1+G$5) -> 0 | I37: 0
B38: Administration | E38: =SUM(E33:E37) -> 1218 | F38: 1718 | G38: =SUM(G34:G37) -> 1070 | H38: =SUM(H34:H37) -> 1000 | I38: -70
I39: 0
B40: CONTRACTED SERVICES | C40: 596-7-53-8180-000 | E40: 141254 | F40: 142300 | G40: 142300 | H40: 142300 | I40: 0
B41: Repairs and Maintenance | E41: =E40 -> 141254 | F41: 142300 | G41: =F41*(1+G$5) -> 142300 | H41: =SUM(H40) -> 142300 | I41: 0
I42: 0
B43: DEPRECIATION EXPENSE | C43: 596-7-99-8000-000 | F43: 0 | I43: 0
B44: Depreciation | E44: =SUM(E42:E43) -> 0 | F44: 0 | G44: 0 | I44: 0
B45: ANB INT - F150 | C45: 596-7-99-7657-400 | E45: 0 | F45: 0 | I45: 0
B46: Incode | C46: 596-7-99-7657-200 | E46: 0 | F46: 0 | I46: 0
B47: DS - INTEREST | C47: 596-7-53-7606-000 | F47: 0 | I47: 0
B48: Interest on Long-Term Debt | E48: =SUM(E45:E47) -> 0 | F48: 0 | G48: =SUM(G45:G47) -> 0 | I48: 0
I49: 0
B50: Total Expenses | E50: =E27+E32+E38+E41+E44+E48 -> 161641.2064 | F50: 162901 | G50: =G27+G32+G38+G41+G44+G48 -> 168882.8 | H50: =H27+H32+H38+H41+H44+H48 -> 158818 | I50: -10064.8
A51: Excess of Revenues over Expenses | E51: =E15-E50 -> -29641.20637 | F51: -30901 | G51: =G15-G50 -> -29649.04 | H51: =H15-H50 -> -19418 | I51: 10231.04
I52: 0
I53: 0
A54: Grant Revenue | F54: 0 | G54: 0 | I54: 0
I55: 0
I56: 0
A57: Contributions | F57: 0 | I57: 0
I58: 0
B59: TRANSFER IN | C59: 596-6176-000 | F59: 0 | I59: 0
A60: Transfers | E60: =-SUM(E58:E59) -> 0 | F60: 0 | G60: 0 | I60: 0
I61: 0
A62: Increase(Decrease) in net assets | E62: =E51+E54+E60+E57 -> -29641.20637 | F62: -30901 | G62: =G51+G54+G60+G57 -> -29649.04 | H62: =H51+H54+H60+H57 -> -19418 | I62: 10231.04
I63: 0
B64: ANB PRINC - F150 | C64: 596-7-99-7657-300 | F64: 0 | I64: 0
B65: Incode | C65: 596-7-99-7657-100 | F65: 0 | G65: 0 | I65: 0
B66: N/P 08 F150 | C66: 596-2420-000 | F66: 0 | I66: 0
B67: Payment of Principal Debt | F67: 0 | G67: =-SUM(G64:G66) -> 0 | I67: 0
I68: 0
B69: Increase in Debt | F69: 0 | G69: =G68 -> 0 | I69: 0
I70: 0
B71: VEHICLES | C71: 596-1523-000 | F71: 0 | I71: 0
B72: ACCUMULATED DEPRECIATION | C72: 596-1530-000 | F72: 0 | I72: 0
B73: MACHINERY & EQUIPMENT | C73: 596-1540-000 | F73: 0 | I73: 0
B74: Capital Items | F74: 0 | G74: =-SUM(G70:G73) -> 0 | I74: =H74-G74 -> 0
I75: 0
B76: Due To/From Gov | F76: 0 | G76: =-SUM(G75:G75) -> 0 | I76: 0
I77: 0
B78: ACCOUNTS RECEIVABLE | C78: 596-1400-000 | F78: 0 | I78: 0
B79: DUE FROM OTHER FUNDS | C79: 596-1084-000 | F79: 0 | I79: 0
B80: UNBILLED A/R | C80: 596-1410-000 | F80: 0 | I80: 0
B81: ALLOW FOR DOUBTFUL ACCT - TR | C81: 596-1450-000 | F81: 0 | I81: 0
B82: Receivables | F82: 0 | G82: =-SUM(G77:G81) -> 0 | I82: 0
I83: 0
B84: ACCOUNTS PAYABLE - POOLED | C84: 596-2010-000 | F84: 0 | I84: 0
B85: ACCOUNTS PAYABLE | C85: 596-2020-000 | F85: 0 | I85: 0
B86: EMPLOYEE CHRISTMAS SAVINGS | C86: 596-2159-000 | F86: 0 | I86: 0
B87: FICA SS WITHHELD | C87: 596-2260-000 | F87: 0 | I87: 0
B88: FICA MEDICARE WITHHELD | C88: 596-2270-000 | F88: 0 | I88: 0
B89: FEDERAL TAXES WITHHELD | C89: 596-2280-000 | F89: 0 | I89: 0
B90: TMRS WITHHELD | C90: 596-2310-000 | F90: 0 | I90: 0
B91: OTHER GARNISHMENTS | C91: 596-2320-000 | F91: 0 | I91: 0
B92: GROUP HEALTH & LIFE | C92: 596-2330-000 | F92: 0 | I92: 0
B93: CHILD SUPPORT PAYABLE | C93: 596-2340-000 | F93: 0 | I93: 0
B94: DEFERRED COMP PAYABLE | C94: 596-2350-000 | F94: 0 | I94: 0
B95: Payables | F95: 0 | G95: =-SUM(G83:G94) -> 0 | I95: 0
B96: Deferred Revenue & Other | I96: 0
B97: Transfer to/from Restricted | F97: 0 | G97: 0 | I97: 0
I98: 0
A99: Change in Cash | E99: =E62+E67+E69+E74+E76+E82+E95+E96 -> -29641.20637 | F99: -30901 | G99: =G62+G67+G69+G74+G76 -> -29649.04 | H99: =H62+H67+H69+H74+H76 -> -19418 | I99: 10231.04
B227: Uniforms | C227: 101-7-25-7125-000 | F227: 350

Sheet 2013-2014
A7: 1 | B7: =A7+1 -> 2 | C7: 3 | D7: 4
A8: ACCTSUM | B8: DESC
B9: Description | D9: Budget | F9: Message | G9: Public Works | H9: Police | I9: Municipal Court | J9: Fire | K9: Building/Code Enforcement | L9: Admin
A11: 101-1009-000 | B11: GENERAL FUND CASH IN BANK | D11: 0 | F11: Sheet: Report-GenFund Address: $C$764 | G11: 0 | H11: 0 | I11: 0 | J11: 0
A12: 101-1010-001 | B12: POLICE - TCLEOSE | D12: 0 | F12: Sheet: Report-GenFund Address: $C$762 | G12: 0 | H12: 0 | I12: 0 | J12: 0
A13: 101-1010-002 | B13: POLICE - ASSET FORFEITURE | D13: 0 | F13: Sheet: Report-GenFund Address: $C$763 | G13: 0 | H13: 0 | I13: 0 | J13: 0
A14: 101-1010-003 | B14: PARK FUND | D14: 0 | F14: Sheet: Report-GenFund Address: $C$761 | G14: 0 | H14: 0 | I14: 0 | J14: 0
A15: 101-1010-004 | B15: FIRE - MAJOR EQUIPMENT | D15: 0 | F15: Sheet: Report-GenFund Address: $C$760 | G15: 0 | H15: 0 | I15: 0 | J15: 0
A16: 101-1010-005 | B16: EMPLOYEE SAVINGS | D16: 0 | F16: Sheet: Report-GenFund Address: $C$739 | G16: 0 | H16: 0 | I16: 0 | J16: 0
A17: 101-1010-006 | B17: CELEBRATE MAIN STREET | D17: 0 | F17: Sheet: Report-GenFund Address: $C$740 | G17: 0 | H17: 0 | I17: 0 | J17: 0
A18: 101-1010-007 | B18: MUNICIPAL COURT BOND | D18: 0 | F18: Sheet: Report-GenFund Address: $C$757 | G18: 0 | H18: 0 | I18: 0 | J18: 0
A19: 101-1010-008 | B19: MUNICIPAL COURT TECH | D19: 0 | F19: Sheet: Report-GenFund Address: $C$758 | G19: 0 | H19: 0 | I19: 0 | J19: 0
A20: 101-1010-009 | B20: ANB TDHCA Grant Project | D20: 0 | F20: Sheet: Report-GenFund Address: $C$741 | G20: 0 | H20: 0 | I20: 0 | J20: 0
A21: 101-1010-010 | B21: Development Escrow Fund | D21: 0 | F21: Sheet: Report-GenFund Address: $C$742 | G21: 0 | H21: 0 | I21: 0 | J21: 0
A22: 101-1010-011 | B22: Dallas Raceway Escrow | D22: 0 | F22: Sheet: Report-GenFund Address: $C$743 | G22: 0 | H22: 0 | I22: 0 | J22: 0
A23: 101-1010-012 | B23: CRANDALL GATEWAY PROJECT | D23: 0 | F23: Sheet: Report-GenFund Address: $C$744 | G23: 0 | H23: 0 | I23: 0 | J23: 0
A24: 101-1010-013 | B24: Municipal Court Security | D24: 0 | F24: Sheet: Report-GenFund Address: $C$759 | G24: 0 | H24: 0 | I24: 0 | J24: 0
A25: 101-1010-014 | B25: CASH - DOWNTOWN PROJECT | D25: 0 | F25: Sheet: Report-GenFund Address: $C$745 | G25: 0 | H25: 0 | I25: 0 | J25: 0
A26: 101-1010-090 | B26: ANB Christmas Festival | D26: 0 | F26: Sheet: Report-GenFund Address: $C$746 | G26: 0 | H26: 0 | I26: 0 | J26: 0
A27: 101-1010-099 | B27: CLAIM ON POOLED CASH | D27: 0 | F27: Sheet: Report-GenFund Address: $C$747 | G27: 0 | H27: 0 | I27: 0 | J27: 0
A28: 101-1020-000 | B28: ANB General Fund I & S | D28: 0 | F28: Sheet: Report-GenFund Address: $C$765 | G28: 0 | H28: 0 | I28: 0 | J28: 0
A29: 101-1030-000 | B29: ANB General Fund Reserve | D29: 0 | F29: Sheet: Report-GenFund Address: $C$738 | G29: 0 | H29: 0 | I29: 0 | J29: 0
A30: 101-1040-000 | B30: PETTY CASH | D30: 0 | F30: Sheet: Report-GenFund Address: $C$656 | G30: 0 | H30: 0 | I30: 0 | J30: 0
A31: 101-1084-204 | B31: DUE FROM CREEKVIEW | D31: 0 | F31: Sheet: Report-GenFund Address: $C$639 | G31: 0 | H31: 0 | I31: 0 | J31: 0
A32: 101-1084-205 | B32: Loan to Golf Course | D32: 0 | F32: Sheet: Report-GenFund Address: $C$640 | G32: 0 | H32: 0 | I32: 0 | J32: 0
A33: 101-1084-298 | B33: DUE FROM EDC | D33: 0 | F33: Sheet: Report-GenFund Address: $C$624 | G33: 0 | H33: 0 | I33: 0 | J33: 0
A34: 101-1084-590 | B34: crandall | D34: 0 | F34: Sheet: Report-GenFund Address: $C$630 | G34: 0 | H34: 0 | I34: 0 | J34: 0
A35: 101-1084-591 | B35: DUE FROM WATER | D35: 0 | F35: Sheet: Report-GenFund Address: $C$631 | G35: 0 | H35: 0 | I35: 0 | J35: 0
A36: 101-1084-596 | B36: DUE FROM TRASH | D36: 0 | F36: Sheet: Report-GenFund Address: $C$632 | G36: 0 | H36: 0 | I36: 0 | J36: 0
A37: 101-1084-599 | B37: Due from Water Sewer | D37: 0 | F37: Sheet: Report-GenFund Address: $C$633 | G37: 0 | H37: 0 | I37: 0 | J37: 0
A38: 101-1084-661 | B38: DUE FROM EQUIPMENT | D38: 0 | F38: Sheet: Report-GenFund Address: $C$634 | G38: 0 | H38: 0 | I38: 0 | J38: 0
A39: 101-1084-750 | B39: DUE FROM PAYROLL | D39: 0 | F39: Sheet: Report-GenFund Address: $C$635 | G39: 0 | H39: 0 | I39: 0 | J39: 0
A40: 101-1141-000 | B40: Sales & Mixed Beverage Tax Rec | D40: 0 | F40: Sheet: Report-GenFund Address: $C$647 | G40: 0 | H40: 0 | I40: 0 | J40: 0
A41: 101-1141-001 | B41: Franchise Tax - Receivable | D41: 0 | F41: Sheet: Report-GenFund Address: $C$648 | G41: 0 | H41: 0 | I41: 0 | J41: 0
A42: 101-1141-002 | B42: Property Taxes-Receivable | D42: 0 | F42: Sheet: Report-GenFund Address: $C$651 | G42: 0 | H42: 0 | I42: 0 | J42: 0
A43: 101-1141-003 | B43: Allowance for property tax | D43: 0 | F43: Sheet: Report-GenFund Address: $C$652 | G43: 0 | H43: 0 | I43: 0 | J43: 0
A44: 101-1145-000 | B44: Credit Card Receivable | D44: 0 | F44: Sheet: Report-GenFund Address: $C$653 | G44: 0 | H44: 0 | I44: 0 | J44: 0
A45: 101-1146-000 | B45: Transfers in Transit | D45: 0 | F45: Sheet: Report-GenFund Address: $C$657 | G45: 0 | H45: 0 | I45: 0 | J45: 0
A46: 101-1155-000 | B46: ACCRUED INTEREST RECEIVABLE | D46: 0 | F46: Sheet: Report-GenFund Address: $C$654 | G46: 0 | H46: 0 | I46: 0 | J46: 0
A47: 101-1160-000 | B47: Return Ck Receivable | D47: 0 | F47: Sheet: Report-GenFund Address: $C$649 | G47: 0 | H47: 0 | I47: 0 | J47: 0
A48: 101-1161-000 | B48: Other Receivables | D48: 0 | F48: Sheet: Report-GenFund Address: $C$650 | G48: 0 | H48: 0 | I48: 0 | J48: 0
A49: 101-1180-000 | B49: Due From State | D49: 0 | F49: Sheet: Report-GenFund Address: $C$658 | G49: 0 | H49: 0 | I49: 0 | J49: 0
A50: 101-1230-000 | B50: Prepaid Insurance | D50: 0 | F50: Sheet: Report-GenFund Address: $C$655 | G50: 0 | H50: 0 | I50: 0 | J50: 0
A51: 101-1300-000 | B51: Assets Held for Sale | D51: 0 | F51: Sheet: Report-GenFund Address: $C$611 | G51: 0 | H51: 0 | I51: 0 | J51: 0
A52: 101-1500-000 | B52: LAND (DO NOT USE) | D52: 0 | F52: Sheet: Report-GenFund Address: $C$612 | G52: 0 | H52: 0 | I52: 0 | J52: 0
A53: 101-1510-000 | B53: BUILDINGS (DO NOT USE) | D53: 0 | F53: Sheet: Report-GenFund Address: $C$613 | G53: 0 | H53: 0 | I53: 0 | J53: 0
A54: 101-1520-000 | B54: IMPROVEMENTS (DO NOT USE) | D54: 0 | F54: Sheet: Report-GenFund Address: $C$614 | G54: 0 | H54: 0 | I54: 0 | J54: 0
A55: 101-1530-000 | B55: MACHINERY & EQUIPMENT | D55: 0 | F55: Sheet: Report-GenFund Address: $C$615 | G55: 0 | H55: 0 | I55: 0 | J55: 0
A56: 101-1540-000 | B56: INFRASTRUCTURE (DO NOT USE) | D56: 0 | F56: Sheet: Report-GenFund Address: $C$616 | G56: 0 | H56: 0 | I56: 0 | J56: 0
A57: 101-1599-000 | B57: ACCUM DEPR (DO NOT USE) | D57: 0 | F57: Sheet: Report-GenFund Address: $C$617 | G57: 0 | H57: 0 | I57: 0 | J57: 0
A58: 101-2010-000 | B58: ACCOUNTS PAYABLE - POOLED | D58: 0 | F58: Sheet: Report-GenFund Address: $C$677 | G58: 0 | H58: 0 | I58: 0 | J58: 0
A59: 101-2020-000 | B59: ACCOUNTS PAYABLE | D59: 0 | F59: Sheet: Report-GenFund Address: $C$678 | G59: 0 | H59: 0 | I59: 0 | J59: 0
A60: 101-2020-001 | B60: Acct Pay - Southern Software | D60: 0 | F60: Sheet: Report-GenFund Address: $C$679 | G60: 0 | H60: 0 | I60: 0 | J60: 0
A61: 101-2100-000 | B61: Accrued Expenses | D61: 0 | F61: Sheet: Report-GenFund Address: $C$680 | G61: 0 | H61: 0 | I61: 0 | J61: 0
A62: 101-2120-000 | B62: State Court Costs Payable | D62: 0 | F62: Sheet: Report-GenFund Address: $C$681 | G62: 0 | H62: 0 | I62: 0 | J62: 0
A63: 101-2121-000 | B63: COURT TECHNOLOGY FEES COLLECTE | D63: 0 | F63: Sheet: Report-GenFund Address: $C$682 | G63: 0 | H63: 0 | I63: 0 | J63: 0
A64: 101-2122-000 | B64: COURT SECURITY FEES COLLECTED | D64: 0 | F64: Sheet: Report-GenFund Address: $C$683 | G64: 0 | H64: 0 | I64: 0 | J64: 0
A65: 101-2123-000 | B65: COURT TIME PMT FEE COLLECTED | D65: 0 | F65: Sheet: Report-GenFund Address: $C$684 | G65: 0 | H65: 0 | I65: 0 | J65: 0
A66: 101-2125-000 | B66: OMNI COURT FEES PAYABLE | D66: 0 | F66: Sheet: Report-GenFund Address: $C$685 | G66: 0 | H66: 0 | I66: 0 | J66: 0
A67: 101-2130-000 | B67: Bonds Payable-Current | D67: 0 | F67: Sheet: Report-GenFund Address: $C$686 | G67: 0 | H67: 0 | I67: 0 | J67: 0
A68: 101-2135-000 | B68: Bond Escrow Account | D68: 0 | F68: Sheet: Report-GenFund Address: $C$687 | G68: 0 | H68: 0 | I68: 0 | J68: 0
A69: 101-2140-298 | B69: Due to EDC | D69: 0 | F69: Sheet: Report-GenFund Address: $C$629 | G69: 0 | H69: 0 | I69: 0 | J69: 0
A70: 101-2140-591 | B70: Due to Water and Sewer | D70: 0 | F70: Sheet: Report-GenFund Address: $C$625 | G70: 0 | H70: 0 | I70: 0 | J70: 0
A71: 101-2140-750 | B71: DUE TO PAYROLL | D71: 0 | F71: Sheet: Report-GenFund Address: $C$626 | G71: 0 | H71: 0 | I71: 0 | J71: 0
A72: 101-2156-000 | B72: IRS Taxes Due | D72: 0 | F72: Sheet: Report-GenFund Address: $C$688 | G72: 0 | H72: 0 | I72: 0 | J72: 0
A73: 101-2158-000 | B73: Garnish Payroll | D73: 0 | F73: Sheet: Report-GenFund Address: $C$689 | G73: 0 | H73: 0 | I73: 0 | J73: 0
A74: 101-2159-000 | B74: Emp. Christmas Savings Club | D74: 0 | F74: Sheet: Report-GenFund Address: $C$690 | G74: 0 | H74: 0 | I74: 0 | J74: 0
A75: 101-2161-000 | B75: SUPPLEMENTAL INSURANCE | D75: 0 | F75: Sheet: Report-GenFund Address: $C$691 | G75: 0 | H75: 0 | I75: 0 | J75: 0
A76: 101-2166-000 | B76: Disaster Relief Fund | D76: 0 | F76: Sheet: Report-GenFund Address: $C$692 | G76: 0 | H76: 0 | I76: 0 | J76: 0
A77: 101-2181-000 | B77: Due to Other Governments | D77: 0 | F77: Sheet: Report-GenFund Address: $C$693 | G77: 0 | H77: 0 | I77: 0 | J77: 0
A78: 101-2185-000 | B78: Due to Collection Agency | D78: 0 | F78: Sheet: Report-GenFund Address: $C$694 | G78: 0 | H78: 0 | I78: 0 | J78: 0
A79: 101-2186-000 | B79: Loan - Bldg., Phones, Streets | D79: 0 | F79: Sheet: Report-GenFund Address: $C$695 | G79: 0 | H79: 0 | I79: 0 | J79: 0
A80: 101-2190-001 | B80: CIVIL JUSTICE - CITY PORTION | D80: 0 | F80: Sheet: Report-GenFund Address: $C$696 | G80: 0 | H80: 0 | I80: 0 | J80: 0
A81: 101-2190-002 | B81: CIVIL JUSTICE - STATE PORTION | D81: 0 | F81: Sheet: Report-GenFund Address: $C$697 | G81: 0 | H81: 0 | I81: 0 | J81: 0
A82: 101-2190-003 | B82: CHILD SAFETY | D82: 0 | F82: Sheet: Report-GenFund Address: $C$698 | G82: 0 | H82: 0 | I82: 0 | J82: 0
A83: 101-2250-000 | B83: UNITED WAY WITHHOLDING | D83: 0 | F83: Sheet: Report-GenFund Address: $C$699 | G83: 0 | H83: 0 | I83: 0 | J83: 0
A84: 101-2260-000 | B84: FICA SS WITHHELD | D84: 0 | F84: Sheet: Report-GenFund Address: $C$700 | G84: 0 | H84: 0 | I84: 0 | J84: 0
A85: 101-2270-000 | B85: FICA/Medicare Withheld | D85: 0 | F85: Sheet: Report-GenFund Address: $C$701 | G85: 0 | H85: 0 | I85: 0 | J85: 0
A86: 101-2280-000 | B86: Federal Income Taxes | D86: 0 | F86: Sheet: Report-GenFund Address: $C$702 | G86: 0 | H86: 0 | I86: 0 | J86: 0
A87: 101-2310-000 | B87: Employee Retirement | D87: 0 | F87: Sheet: Report-GenFund Address: $C$703 | G87: 0 | H87: 0 | I87: 0 | J87: 0
A88: 101-2320-000 | B88: OTHER GARNISHMENTS | D88: 0 | F88: Sheet: Report-GenFund Address: $C$704 | G88: 0 | H88: 0 | I88: 0 | J88: 0
A89: 101-2330-000 | B89: Group Health & Life Ins. | D89: 0 | F89: Sheet: Report-GenFund Address: $C$705 | G89: 0 | H89: 0 | I89: 0 | J89: 0
A90: 101-2340-000 | B90: Child Support | D90: 0 | F90: Sheet: Report-GenFund Address: $C$706 | G90: 0 | H90: 0 | I90: 0 | J90: 0
A91: 101-2350-000 | B91: DEFERRED COMP PAYABLE | D91: 0 | F91: Sheet: Report-GenFund Address: $C$707 | G91: 0 | H91: 0 | I91: 0 | J91: 0
A92: 101-2360-000 | B92: TWC Payable | D92: 0 | F92: Sheet: Report-GenFund Address: $C$708 | G92: 0 | H92: 0 | I92: 0 | J92: 0
A93: 101-2440-000 | B93: N/P - First State - DO NOT USE | D93: 0 | F93: Sheet: Report-GenFund Address: $C$641 | G93: 0 | H93: 0 | I93: 0 | J93: 0
A94: 101-2570-000 | B94: Accrued Payroll | D94: 0 | F94: Sheet: Report-GenFund Address: $C$663 | G94: 0 | H94: 0 | I94: 0 | J94: 0
A95: 101-2600-000 | B95: O/S Checks Payable | D95: 0 | F95: Sheet: Report-GenFund Address: $C$709 | G95: 0 | H95: 0 | I95: 0 | J95: 0
A96: 101-2601-000 | B96: OVERPAYMENT | D96: 0 | F96: Sheet: Report-GenFund Address: $C$710 | G96: 0 | H96: 0 | I96: 0 | J96: 0
A97: 101-2700-000 | B97: Developer Deposit | D97: 0 | F97: Sheet: Report-GenFund Address: $C$711 | G97: 0 | H97: 0 | I97: 0 | J97: 0
A98: 101-2800-000 | B98: N/P - ANB - 1 (DO NOT USE) | D98: 0 | F98: Sheet: Report-GenFund Address: $C$577 | G98: 0 | H98: 0 | I98: 0 | J98: 0
A99: 101-2805-000 | B99: N/P - ANB - 2 (DO NOT USE) | D99: 0 | F99: Sheet: Report-GenFund Address: $C$578 | G99: 0 | H99: 0 | I99: 0 | J99: 0
A100: 101-2810-000 | B100: N/P - ANB - 3 (DO NOT USE) | D100: 0 | F100: Sheet: Report-GenFund Address: $C$579 | G100: 0 | H100: 0 | I100: 0 | J100: 0
A101: 101-2815-000 | B101: N/P - ANB - 4 (DO NOT USE) | D101: 0 | F101: Sheet: Report-GenFund Address: $C$580 | G101: 0 | H101: 0 | I101: 0 | J101: 0
A102: 101-2820-000 | B102: N/P - TX COM FIRE (DO NOT USE) | D102: 0 | F102: Sheet: Report-GenFund Address: $C$581 | G102: 0 | H102: 0 | I102: 0 | J102: 0
A103: 101-2825-000 | B103: N/P - LEASE PAY | D103: 0 | F103: Sheet: Report-GenFund Address: $C$582 | G103: 0 | H103: 0 | I103: 0 | J103: 0
A104: 101-2830-000 | B104: N/P - DELL - 1 (DO NOT USE) | D104: 0 | F104: Sheet: Report-GenFund Address: $C$583 | G104: 0 | H104: 0 | I104: 0 | J104: 0
A105: 101-2835-000 | B105: N/P - DELL - 2 (DO NOT USE) | D105: 0 | F105: Sheet: Report-GenFund Address: $C$584 | G105: 0 | H105: 0 | I105: 0 | J105: 0
A106: 101-2840-000 | B106: COMP ABSENCES (DO NOT USE) | D106: 0 | F106: Sheet: Report-GenFund Address: $C$585 | G106: 0 | H106: 0 | I106: 0 | J106: 0
A107: 101-2990-000 | B107: Deferred Revenues-Ad Valorem | D107: 0 | F107: Sheet: Report-GenFund Address: $C$724 | G107: 0 | H107: 0 | I107: 0 | J107: 0
A108: 101-2990-100 | B108: Deferred Revenue Other | D108: 0 | F108: Sheet: Report-GenFund Address: $C$725 | G108: 0 | H108: 0 | I108: 0 | J108: 0
A109: 101-2991-000 | B109: Payroll to be Allocated | D109: 0 | F109: Sheet: Report-GenFund Address: $C$664 | G109: 0 | H109: 0 | I109: 0 | J109: 0
A110: 101-3001-000 | B110: Desig Fund Bal-Mun CT Tech Fun | D110: 0 | G110: 0 | H110: 0 | I110: 0 | J110: 0
A111: 101-3040-000 | B111: Designated for Assets Held | D111: 0 | G111: 0 | H111: 0 | I111: 0 | J111: 0
A112: 101-3050-000 | B112: Desig Fund Bal-BLDG Sec Fund | D112: 0 | G112: 0 | H112: 0 | I112: 0 | J112: 0
A113: 101-3060-000 | B113: Desig Fund Bal -Forfeiture FD | D113: 0 | G113: 0 | H113: 0 | I113: 0 | J113: 0
A114: 101-3070-000 | B114: Designated for Park Fund | D114: 0 | G114: 0 | H114: 0 | I114: 0 | J114: 0
A115: 101-3080-000 | B115: Designated for Fire Equipment | D115: 0 | G115: 0 | H115: 0 | I115: 0 | J115: 0
A116: 101-3090-000 | B116: Designated for Celebrate Main | D116: 0 | G116: 0 | H116: 0 | I116: 0 | J116: 0
A117: 101-3900-000 | B117: Opening Bal Equity | D117: 0 | G117: 0 | H117: 0 | I117: 0 | J117: 0
A118: 101-4076-360 | B118: REFUNDS | D118: 0 | F118: Sheet: Report-GenFund Address: $C$36 | G118: 0 | H118: 0 | I118: 0 | J118: 0
A119: 101-5000-000 | B119: PRIOR YEAR RESOURCES | D119: 0 | F119: Sheet: Report-GenFund Address: $C$37 | G119: 0 | H119: 0 | I119: 0 | J119: 0
A120: 101-5005-000 | B120: CVFD | D120: 30000 | F120: Sheet: Report-GenFund Address: $C$45 | G120: 0 | H120: 0 | I120: 0 | J120: 0
A121: 101-5006-000 | B121: POLICE SEIZURE REVENUE | D121: 0 | F121: Sheet: Report-GenFund Address: $C$33 | G121: 0 | H121: 0 | I121: 0 | J121: 0
A122: 101-5102-100 | B122: PROPERTY TAX (M & O) | D122: 765000 | F122: Sheet: Report-GenFund Address: $C$38 | G122: 0 | H122: 0 | I122: 0 | J122: 0
A123: 101-5102-200 | B123: I&S Tax | D123: 331066.4193 | F123: Sheet: Report-GenFund Address: $C$43 | G123: 0 | H123: 0 | I123: 0 | J123: 0
A124: 101-5103-100 | B124: Sales Tax | D124: 185000 | F124: Sheet: Report-GenFund Address: $C$46 | G124: 0 | H124: 0 | I124: 0 | J124: 0
A125: 101-5103-200 | B125: PROPERTY TAX RELIEF | D125: 60000 | F125: Sheet: Report-GenFund Address: $C$47 | G125: 0 | H125: 0 | I125: 0 | J125: 0
A126: 101-5103-300 | B126: LIQUOR TAX (SALES) | D126: 0 | F126: Sheet: Report-GenFund Address: $C$16 | G126: 0 | H126: 0 | I126: 0 | J126: 0
A127: 101-5104-000 | B127: FRANCHISE TAX | D127: 150000 | F127: Sheet: Report-GenFund Address: $C$49 | G127: 0 | H127: 0 | I127: 0 | J127: 0
A128: 101-5112-100 | B128: Permit Fees | D128: 45000 | F128: Sheet: Report-GenFund Address: $C$8 | G128: 0 | H128: 0 | I128: 0 | J128: 0
A129: 101-5112-200 | B129: INFRASTRUCTURE FEES | D129: 15000 | F129: Sheet: Report-GenFund Address: $C$9 | G129: 0 | H129: 0 | I129: 0 | J129: 0
A130: 101-5112-300 | B130: FIRE INSPECTION FEE | D130: 0 | F130: Sheet: Report-GenFund Address: $C$10 | G130: 0 | H130: 0 | I130: 0 | J130: 0
A131: 101-5112-400 | B131: LIFE SAFETY INSPECTION | D131: 0 | F131: Sheet: Report-GenFund Address: $C$11 | G131: 0 | H131: 0 | I131: 0 | J131: 0
A132: 101-5112-500 | B132: Contractor License | D132: 0 | F132: Sheet: Report-GenFund Address: $C$12 | G132: 0 | H132: 0 | I132: 0 | J132: 0
A133: 101-5112-700 | B133: Permits - Heartland | D133: 0 | F133: Sheet: Report-GenFund Address: $C$13 | G133: 0 | H133: 0 | I133: 0 | J133: 0
A134: 101-5113-000 | B134: ZONING/VARIANCE | D134: 500 | F134: Sheet: Report-GenFund Address: $C$14 | G134: 0 | H134: 0 | I134: 0 | J134: 0
A135: 101-5114-000 | B135: WATER TOWER LEASES | D135: 10000 | F135: Sheet: Report-GenFund Address: $C$52 | G135: 0 | H135: 0 | I135: 0 | J135: 0
A136: 101-5115-000 | B136: REMEDIATION | D136: 0 | F136: Sheet: Report-GenFund Address: $C$53 | G136: 0 | H136: 0 | I136: 0 | J136: 0
A137: 101-5119-000 | B137: ACCIDENT REPORTS | D137: 0 | F137: Sheet: Report-GenFund Address: $C$54 | G137: 0 | H137: 0 | I137: 0 | J137: 0
A138: 101-5120-000 | B138: OPEN RECORDS REQUESTS | D138: 0 | F138: Sheet: Report-GenFund Address: $C$55 | G138: 0 | H138: 0 | I138: 0 | J138: 0
A139: 101-5121-000 | B139: RENTAL INSPECTION FEE | D139: 0 | F139: Sheet: Report-GenFund Address: $C$74 | G139: 0 | H139: 0 | I139: 0 | J139: 0
A140: 101-5130-000 | B140: MISCELLANEOUS REVENUE | D140: 20000 | F140: Sheet: Report-GenFund Address: $C$58 | G140: 0 | H140: 0 | I140: 0 | J140: 0
A141: 101-5131-000 | B141: CREDIT CARD USE FEE | D141: 0 | F141: Sheet: Report-GenFund Address: $C$56 | G141: 0 | H141: 0 | I141: 0 | J141: 0
A142: 101-5132-000 | B142: ANIMAL IMPOUND FEE | D142: 0 | F142: Sheet: Report-GenFund Address: $C$62 | G142: 0 | H142: 0 | I142: 0 | J142: 0
A143: 101-5133-000 | B143: ANIMAL BOARDING FEE | D143: 0 | F143: Sheet: Report-GenFund Address: $C$63 | G143: 0 | H143: 0 | I143: 0 | J143: 0
A144: 101-5134-000 | B144: REIMBURSEMENT OF LEGAL FEES | D144: 0 | F144: Sheet: Report-GenFund Address: $C$64 | G144: 0 | H144: 0 | I144: 0 | J144: 0
A145: 101-5135-000 | B145: REIMBURSEMENT OF PLANNER/ENGIN | D145: 0 | F145: Sheet: Report-GenFund Address: $C$65 | G145: 0 | H145: 0 | I145: 0 | J145: 0
A146: 101-5136-000 | B146: FIRE INS REIMB | D146: 0 | F146: Sheet: Report-GenFund Address: $C$72 | G146: 0 | H146: 0 | I146: 0 | J146: 0
A147: 101-5144-000 | B147: REIMBURSEMENT CEDC STAFF | D147: 0 | F147: Sheet: Report-GenFund Address: $C$66 | G147: 0 | H147: 0 | I147: 0 | J147: 0
A148: 101-5145-000 | B148: SHOP REIMBURSEMENT | D148: 0 | F148: Sheet: Report-GenFund Address: $C$67 | G148: 0 | H148: 0 | I148: 0 | J148: 0
A149: 101-5146-000 | B149: ADMINISTRATION REIMBURSEMENT | D149: 0 | F149: Sheet: Report-GenFund Address: $C$59 | G149: 0 | H149: 0 | I149: 0 | J149: 0
A150: 101-5149-000 | B150: KAUFMAN COUNTY TOURNAMENT | D150: 0 | F150: Sheet: Report-GenFund Address: $C$60 | G150: 0 | H150: 0 | I150: 0 | J150: 0
A151: 101-5149-100 | B151: Kaufman Co. Day | D151: 0 | F151: Sheet: Report-GenFund Address: $C$68 | G151: 0 | H151: 0 | I151: 0 | J151: 0
A152: 101-5150-000 | B152: FINES & FEES | D152: 150000 | F152: Sheet: Report-GenFund Address: $C$19 | G152: 0 | H152: 0 | I152: 0 | J152: 0
A153: 101-5151-000 | B153: WARRANT FEES | D153: 15000 | F153: Sheet: Report-GenFund Address: $C$20 | G153: 0 | H153: 0 | I153: 0 | J153: 0
A154: 101-5152-000 | B154: ADM Fees Coll | D154: 0 | F154: Sheet: Report-GenFund Address: $C$21 | G154: 0 | H154: 0 | I154: 0 | J154: 0
A155: 101-5152-100 | B155: PAYMENT PLAN | D155: 200 | F155: Sheet: Report-GenFund Address: $C$22 | G155: 0 | H155: 0 | I155: 0 | J155: 0
A156: 101-5152-200 | B156: MUNICIPAL COURT SECURITY FUND | D156: 3800 | F156: Sheet: Report-GenFund Address: $C$23 | G156: 0 | H156: 0 | I156: 0 | J156: 0
A157: 101-5152-300 | B157: JUDICIAL EFFICIENCY FEE | D157: 1000 | F157: Sheet: Report-GenFund Address: $C$24 | G157: 0 | H157: 0 | I157: 0 | J157: 0
A158: 101-5153-000 | B158: TRAFFIC FINES | D158: 3800 | F158: Sheet: Report-GenFund Address: $C$25 | G158: 0 | H158: 0 | I158: 0 | J158: 0
A159: 101-5154-000 | B159: ADDITIONAL COURT COSTS | D159: 0 | F159: Sheet: Report-GenFund Address: $C$26 | G159: 0 | H159: 0 | I159: 0 | J159: 0
A160: 101-5155-000 | B160: MUNICIPAL COURT TECH FUND | D160: 10000 | F160: Sheet: Report-GenFund Address: $C$27 | G160: 0 | H160: 0 | I160: 0 | J160: 0
A161: 101-5156-000 | B161: STATE FEES | D161: 75000 | F161: Sheet: Report-GenFund Address: $C$28 | G161: 0 | H161: 0 | I161: 0 | J161: 0
A162: 101-5158-000 | B162: FTA (DPS/OMNIBASE) | D162: 0 | F162: Sheet: Report-GenFund Address: $C$29 | G162: 0 | H162: 0 | I162: 0 | J162: 0
A163: 101-5159-000 | B163: FTA (CITY) | D163: 0 | F163: Sheet: Report-GenFund Address: $C$30 | G163: 0 | H163: 0 | I163: 0 | J163: 0
A164: 101-5160-000 | B164: Contributions Revenue | D164: 0 | F164: Sheet: Report-GenFund Address: $C$76 | G164: 0 | H164: 0 | I164: 0 | J164: 0
A165: 101-5160-100 | B165: POLICE SEIZURE REVENUE 32-7499 | D165: 0 | F165: Sheet: Report-GenFund Address: $C$31 | G165: 0 | H165: 0 | I165: 0 | J165: 0
A166: 101-5165-100 | B166: Police Reimb | D166: 0 | F166: Sheet: Report-GenFund Address: $C$75 | G166: 0 | H166: 0 | I166: 0 | J166: 0
A167: 101-5185-000 | B167: AMS COLLECTION | D167: 0 | F167: Sheet: Report-GenFund Address: $C$15 | G167: 0 | H167: 0 | I167: 0 | J167: 0
A168: 101-5190-000 | B168: DT Construction Rental Revenue | D168: 0 | F168: Sheet: Report-GenFund Address: $C$57 | G168: 0 | H168: 0 | I168: 0 | J168: 0
A169: 101-5210-000 | B169: Rent | D169: 0 | F169: Sheet: Report-GenFund Address: $C$73 | G169: 0 | H169: 0 | I169: 0 | J169: 0
A170: 101-5455-000 | B170: TCLEOSE REVENUE | D170: 0 | F170: Sheet: Report-GenFund Address: $C$34 | G170: 0 | H170: 0 | I170: 0 | J170: 0
A171: 101-5592-000 | B171: Silent Stars Donations | D171: 0 | F171: Sheet: Report-GenFund Address: $C$78 | G171: 0 | H171: 0 | I171: 0 | J171: 0
A172: 101-5595-000 | B172: CHRISTMAS FESTIVITIES | D172: 0 | F172: Sheet: Report-GenFund Address: $C$79 | G172: 0 | H172: 0 | I172: 0 | J172: 0
A173: 101-5598-000 | B173: Unused Mun. Ct. Tech Funds | D173: 0 | G173: 0 | H173: 0 | I173: 0 | J173: 0
A174: 101-5800-000 | B174: State/Federal Grant | D174: 0 | G174: 0 | H174: 0 | I174: 0 | J174: 0
A175: 101-5920-000 | B175: INTEREST INCOME | D175: 0 | F175: Sheet: Report-GenFund Address: $C$70 | G175: 0 | H175: 0 | I175: 0 | J175: 0
A176: 101-5926-000 | B176: Loan Proceeds | D176: 0 | F176: Sheet: Report-GenFund Address: $C$601 | G176: 0 | H176: 0 | I176: 0 | J176: 0
A177: 101-6320-000 | B177: POLICE SERVICES AGREEMENT | D177: 271250 | F177: Sheet: Report-GenFund Address: $C$17 | G177: 0 | H177: 0 | I177: 0 | J177: 0
A178: 101-6700-000 | B178: Gain or Loss on Sale | D178: 0 | F178: Sheet: Report-GenFund Address: $C$620 | G178: 0 | H178: 0 | I178: 0 | J178: 0
A179: 101-6990-000 | B179: TRANSFER IN | D179: 0 | F179: Sheet: Report-GenFund Address: $C$556 | G179: 0 | H179: 0 | I179: 0 | J179: 0
A180: 101-7-20-5160-000 | B180: CONTRIBUTIONS/DONATIONS | F180: Sheet: Report-GenFund Address: $C$91
A181: 101-7-20-6560-000 | B181: Payroll Expenses | D181: 0 | F181: Sheet: Report-GenFund Address: $C$86 | G181: 0 | H181: 0 | I181: 0 | J181: 0
A182: 101-7-20-7000-999 | B182: City Hall-Admin | D182: 0 | F182: Sheet: Report-GenFund Address: $C$87 | G182: 0 | H182: 0 | I182: 0 | J182: 0
A183: 101-7-20-7101-000 | B183: SALARIES & WAGES - ADMIN. | D183: 208000 | F183: Sheet: Report-GenFund Address: $C$88 | G183: 0 | H183: 0 | I183: 0 | J183: 0 | L183: =59736*1.05 -> 62722.8
A184: 101-7-20-7103-200 | B184: PART TIME WAGES | D184: 0 | F184: Sheet: Report-GenFund Address: $C$89 | G184: 0 | H184: 0 | I184: 0 | J184: 0
A185: 101-7-20-7105-000 | B185: BENEFITS | D185: 21270 | F185: Sheet: Report-GenFund Address: $C$90 | G185: 0 | H185: 0 | I185: 0 | J185: 0 | L185: =6495*1.05 -> 6819.75
A186: 101-7-20-7105-100 | B186: HSA Expense | D186: 0 | F186: Sheet: Report-GenFund Address: $C$93 | G186: 0 | H186: 0 | I186: 0 | J186: 0
A187: 101-7-20-7106-000 | B187: MEDICARE | D187: 3016 | F187: Sheet: Report-GenFund Address: $C$94 | G187: 0 | H187: 0 | I187: 0 | J187: 0 | L187: =1732*1.05 -> 1818.6
A188: 101-7-20-7107-000 | B188: WORKERS COMPENSATION | D188: 500 | F188: Sheet: Report-GenFund Address: $C$95 | G188: 0 | H188: 0 | I188: 0 | J188: 0 | L188: =450*1.05 -> 472.5
A189: 101-7-20-7108-000 | B189: RETIREMENT | D189: 18470 | F189: Sheet: Report-GenFund Address: $C$96 | G189: 0 | H189: 0 | I189: 0 | J189: 0 | L189: 5000
A190: 101-7-20-7109-000 | B190: FICA | D190: 0 | F190: Sheet: Report-GenFund Address: $C$97 | G190: 0 | H190: 0 | I190: 0 | J190: 0
A191: 101-7-20-7110-000 | B191: UNEMPLOYMENT | D191: 0 | F191: Sheet: Report-GenFund Address: $C$98 | G191: 0 | H191: 0 | I191: 0 | J191: 0 | L191: 10000
A192: 101-7-20-7111-000 | B192: CM AUTO ALLOWANCE | D192: 2400 | F192: Sheet: Report-GenFund Address: $C$99 | G192: 0 | H192: 0 | I192: 0 | J192: 0 | L192: 2400
A193: 101-7-20-7111-100 | B193: CM HOUSING ALLOWANCE | D193: 0 | F193: Sheet: Report-GenFund Address: $C$100 | G193: 0 | H193: 0 | I193: 0 | J193: 0 | L193: 0
A194: 101-7-20-7111-200 | B194: CM INSURANCE ALLOWANCE | D194: 0 | F194: Sheet: Report-GenFund Address: $C$101 | G194: 0 | H194: 0 | I194: 0 | J194: 0
A195: 101-7-20-7112-000 | B195: CM EXPENSE | D195: 5000 | F195: Sheet: Report-GenFund Address: $C$102 | G195: 0 | H195: 0 | I195: 0 | J195: 0 | L195: 5000
A196: 101-7-20-7113-000 | B196: CM TRAINING | D196: 4000 | F196: Sheet: Report-GenFund Address: $C$103 | G196: 0 | H196: 0 | I196: 0 | J196: 0 | L196: 2000
A197: 101-7-20-7115-000 | B197: COUNCIL EXPENSE | D197: 10000 | F197: Sheet: Report-GenFund Address: $C$104 | G197: 0 | H197: 0 | I197: 0 | J197: 0
A198: 101-7-20-7116-000 | B198: PLANNING & ZONING EXPENSE | D198: 200 | F198: Sheet: Report-GenFund Address: $C$105 | G198: 0 | H198: 0 | I198: 0 | J198: 0 | L198: 200
A199: 101-7-20-7120-000 | B199: TUITION & TRAINING | D199: 3000 | F199: Sheet: Report-GenFund Address: $C$106 | G199: 0 | H199: 0 | I199: 0 | J199: 0 | L199: 2500
A200: 101-7-20-7121-000 | B200: TRAVEL EXPENSE | D200: 2500 | F200: Sheet: Report-GenFund Address: $C$107 | G200: 0 | H200: 0 | I200: 0 | J200: 0 | L200: 4000
A201: 101-7-20-7150-000 | B201: EMPLOYEE RECOGNITION | D201: 2000 | F201: Sheet: Report-GenFund Address: $C$108 | G201: 0 | H201: 0 | I201: 0 | J201: 0 | L201: 1000
A202: 101-7-20-7151-000 | B202: 457 CONTRIBUTION | D202: 0 | F202: Sheet: Report-GenFund Address: $C$109 | G202: 0 | H202: 0 | I202: 0 | J202: 0 | L202: 0
A203: 101-7-20-7201-100 | B203: CLERICAL SUPPLIES | D203: 0 | F203: Sheet: Report-GenFund Address: $C$110 | G203: 0 | H203: 0 | I203: 0 | J203: 0 | L203: 0
A204: 101-7-20-7201-200 | B204: OFFICE SUPPLIES | D204: 6000 | F204: Sheet: Report-GenFund Address: $C$111 | G204: 0 | H204: 0 | I204: 0 | J204: 0 | L204: 8000
A205: 101-7-20-7201-300 | B205: CLEANING SUPPLIES | D205: 0 | F205: Sheet: Report-GenFund Address: $C$112 | G205: 0 | H205: 0 | I205: 0 | J205: 0 | L205: 0
A206: 101-7-20-7202-000 | B206: POSTAGE | D206: 3000 | F206: Sheet: Report-GenFund Address: $C$113 | G206: 0 | H206: 0 | I206: 0 | J206: 0 | L206: 3000
A207: 101-7-20-7203-000 | B207: DUES & SUBSCRIPTIONS | D207: 3000 | F207: Sheet: Report-GenFund Address: $C$114 | G207: 0 | H207: 0 | I207: 0 | J207: 0 | L207: 5000
... 1397 more rows

Sheet 2012-2013
A7: 1 | B7: =A7+1 -> 2 | C7: 3 | D7: 4
A8: ACCTSUM | B8: DESC
B9: Description | D9: Actual | F9: Message | G9: Public Works | H9: Police | I9: Municipal Court | J9: Fire | K9: Building/Code Enforcement | L9: Admin
A11: 101-1009-000 | B11: GENERAL FUND CASH IN BANK | D11: 0 | G11: 0 | H11: 0 | I11: 0 | J11: 0
A12: 101-1010-001 | B12: POLICE - TCLEOSE | D12: 0 | G12: 0 | H12: 0 | I12: 0 | J12: 0
A13: 101-1010-002 | B13: POLICE - ASSET FORFEITURE | D13: 0 | G13: 0 | H13: 0 | I13: 0 | J13: 0
A14: 101-1010-003 | B14: PARK FUND | D14: 0 | G14: 0 | H14: 0 | I14: 0 | J14: 0
A15: 101-1010-004 | B15: FIRE - MAJOR EQUIPMENT | D15: 0 | G15: 0 | H15: 0 | I15: 0 | J15: 0
A16: 101-1010-005 | B16: EMPLOYEE SAVINGS | D16: 0 | G16: 0 | H16: 0 | I16: 0 | J16: 0
A17: 101-1010-006 | B17: CELEBRATE MAIN STREET | D17: 0 | G17: 0 | H17: 0 | I17: 0 | J17: 0
A18: 101-1010-007 | B18: MUNICIPAL COURT BOND | D18: 0 | G18: 0 | H18: 0 | I18: 0 | J18: 0
A19: 101-1010-008 | B19: MUNICIPAL COURT TECH | D19: 0 | G19: 0 | H19: 0 | I19: 0 | J19: 0
A20: 101-1010-009 | B20: ANB TDHCA Grant Project | D20: 0 | G20: 0 | H20: 0 | I20: 0 | J20: 0
A21: 101-1010-010 | B21: Development Escrow Fund | D21: 0 | G21: 0 | H21: 0 | I21: 0 | J21: 0
A22: 101-1010-011 | B22: Dallas Raceway Escrow | D22: 0 | G22: 0 | H22: 0 | I22: 0 | J22: 0
A23: 101-1010-012 | B23: CRANDALL GATEWAY PROJECT | D23: 0 | G23: 0 | H23: 0 | I23: 0 | J23: 0
A24: 101-1010-013 | B24: Municipal Court Security | D24: 0 | G24: 0 | H24: 0 | I24: 0 | J24: 0
A25: 101-1010-014 | B25: CASH - DOWNTOWN PROJECT | D25: 0 | G25: 0 | H25: 0 | I25: 0 | J25: 0
A26: 101-1010-090 | B26: ANB Christmas Festival | D26: 0 | G26: 0 | H26: 0 | I26: 0 | J26: 0
A27: 101-1010-099 | B27: CLAIM ON POOLED CASH | D27: 0 | G27: 0 | H27: 0 | I27: 0 | J27: 0
A28: 101-1020-000 | B28: ANB General Fund I & S | D28: 0 | G28: 0 | H28: 0 | I28: 0 | J28: 0
A29: 101-1030-000 | B29: ANB General Fund Reserve | D29: 0 | G29: 0 | H29: 0 | I29: 0 | J29: 0
A30: 101-1040-000 | B30: PETTY CASH | D30: 0 | G30: 0 | H30: 0 | I30: 0 | J30: 0
A31: 101-1084-204 | B31: DUE FROM CREEKVIEW | D31: 0 | G31: 0 | H31: 0 | I31: 0 | J31: 0
A32: 101-1084-205 | B32: Loan to Golf Course | D32: 0 | G32: 0 | H32: 0 | I32: 0 | J32: 0
A33: 101-1084-298 | B33: DUE FROM EDC | D33: 0 | G33: 0 | H33: 0 | I33: 0 | J33: 0
A34: 101-1084-590 | B34: crandall | D34: 0 | G34: 0 | H34: 0 | I34: 0 | J34: 0
A35: 101-1084-591 | B35: DUE FROM WATER | D35: 0 | G35: 0 | H35: 0 | I35: 0 | J35: 0
A36: 101-1084-596 | B36: DUE FROM TRASH | D36: 0 | G36: 0 | H36: 0 | I36: 0 | J36: 0
A37: 101-1084-599 | B37: Due from Water Sewer | D37: 0 | G37: 0 | H37: 0 | I37: 0 | J37: 0
A38: 101-1084-661 | B38: DUE FROM EQUIPMENT | D38: 0 | G38: 0 | H38: 0 | I38: 0 | J38: 0
A39: 101-1084-750 | B39: DUE FROM PAYROLL | D39: 0 | G39: 0 | H39: 0 | I39: 0 | J39: 0
A40: 101-1141-000 | B40: Sales & Mixed Beverage Tax Rec | D40: 0 | G40: 0 | H40: 0 | I40: 0 | J40: 0
A41: 101-1141-001 | B41: Franchise Tax - Receivable | D41: 0 | G41: 0 | H41: 0 | I41: 0 | J41: 0
A42: 101-1141-002 | B42: Property Taxes-Receivable | D42: 0 | G42: 0 | H42: 0 | I42: 0 | J42: 0
A43: 101-1141-003 | B43: Allowance for property tax | D43: 0 | G43: 0 | H43: 0 | I43: 0 | J43: 0
A44: 101-1145-000 | B44: Credit Card Receivable | D44: 0 | G44: 0 | H44: 0 | I44: 0 | J44: 0
A45: 101-1146-000 | B45: Transfers in Transit | D45: 0 | G45: 0 | H45: 0 | I45: 0 | J45: 0
A46: 101-1155-000 | B46: ACCRUED INTEREST RECEIVABLE | D46: 0 | G46: 0 | H46: 0 | I46: 0 | J46: 0
A47: 101-1160-000 | B47: Return Ck Receivable | D47: 0 | G47: 0 | H47: 0 | I47: 0 | J47: 0
A48: 101-1161-000 | B48: Other Receivables | D48: 0 | G48: 0 | H48: 0 | I48: 0 | J48: 0
A49: 101-1180-000 | B49: Due From State | D49: 0 | G49: 0 | H49: 0 | I49: 0 | J49: 0
A50: 101-1230-000 | B50: Prepaid Insurance | D50: 0 | G50: 0 | H50: 0 | I50: 0 | J50: 0
A51: 101-1300-000 | B51: Assets Held for Sale | D51: 0 | G51: 0 | H51: 0 | I51: 0 | J51: 0
A52: 101-1500-000 | B52: LAND (DO NOT USE) | D52: 0 | G52: 0 | H52: 0 | I52: 0 | J52: 0
A53: 101-1510-000 | B53: BUILDINGS (DO NOT USE) | D53: 0 | G53: 0 | H53: 0 | I53: 0 | J53: 0
A54: 101-1520-000 | B54: IMPROVEMENTS (DO NOT USE) | D54: 0 | G54: 0 | H54: 0 | I54: 0 | J54: 0
A55: 101-1530-000 | B55: MACHINERY & EQUIPMENT | D55: 0 | G55: 0 | H55: 0 | I55: 0 | J55: 0
A56: 101-1540-000 | B56: INFRASTRUCTURE (DO NOT USE) | D56: 0 | G56: 0 | H56: 0 | I56: 0 | J56: 0
A57: 101-1599-000 | B57: ACCUM DEPR (DO NOT USE) | D57: 0 | G57: 0 | H57: 0 | I57: 0 | J57: 0
A58: 101-2010-000 | B58: ACCOUNTS PAYABLE - POOLED | D58: 0 | G58: 0 | H58: 0 | I58: 0 | J58: 0
A59: 101-2020-000 | B59: ACCOUNTS PAYABLE | D59: 0 | G59: 0 | H59: 0 | I59: 0 | J59: 0
A60: 101-2020-001 | B60: Acct Pay - Southern Software | D60: 0 | G60: 0 | H60: 0 | I60: 0 | J60: 0
A61: 101-2100-000 | B61: Accrued Expenses | D61: 0 | G61: 0 | H61: 0 | I61: 0 | J61: 0
A62: 101-2120-000 | B62: State Court Costs Payable | D62: 0 | G62: 0 | H62: 0 | I62: 0 | J62: 0
A63: 101-2121-000 | B63: COURT TECHNOLOGY FEES COLLECTE | D63: 0 | G63: 0 | H63: 0 | I63: 0 | J63: 0
A64: 101-2122-000 | B64: COURT SECURITY FEES COLLECTED | D64: 0 | G64: 0 | H64: 0 | I64: 0 | J64: 0
A65: 101-2123-000 | B65: COURT TIME PMT FEE COLLECTED | D65: 0 | G65: 0 | H65: 0 | I65: 0 | J65: 0
A66: 101-2125-000 | B66: OMNI COURT FEES PAYABLE | D66: 0 | G66: 0 | H66: 0 | I66: 0 | J66: 0
A67: 101-2130-000 | B67: Bonds Payable-Current | D67: 0 | G67: 0 | H67: 0 | I67: 0 | J67: 0
A68: 101-2135-000 | B68: Bond Escrow Account | D68: 0 | G68: 0 | H68: 0 | I68: 0 | J68: 0
A69: 101-2140-298 | B69: Due to EDC | D69: 0 | G69: 0 | H69: 0 | I69: 0 | J69: 0
A70: 101-2140-591 | B70: Due to Water and Sewer | D70: 0 | G70: 0 | H70: 0 | I70: 0 | J70: 0
A71: 101-2140-750 | B71: DUE TO PAYROLL | D71: 0 | G71: 0 | H71: 0 | I71: 0 | J71: 0
A72: 101-2156-000 | B72: IRS Taxes Due | D72: 0 | G72: 0 | H72: 0 | I72: 0 | J72: 0
A73: 101-2158-000 | B73: Garnish Payroll | D73: 0 | G73: 0 | H73: 0 | I73: 0 | J73: 0
A74: 101-2159-000 | B74: Emp. Christmas Savings Club | D74: 0 | G74: 0 | H74: 0 | I74: 0 | J74: 0
A75: 101-2161-000 | B75: SUPPLEMENTAL INSURANCE | D75: 0 | G75: 0 | H75: 0 | I75: 0 | J75: 0
A76: 101-2166-000 | B76: Disaster Relief Fund | D76: 0 | G76: 0 | H76: 0 | I76: 0 | J76: 0
A77: 101-2181-000 | B77: Due to Other Governments | D77: 0 | G77: 0 | H77: 0 | I77: 0 | J77: 0
A78: 101-2185-000 | B78: Due to Collection Agency | D78: 0 | G78: 0 | H78: 0 | I78: 0 | J78: 0
A79: 101-2186-000 | B79: Loan - Bldg., Phones, Streets | D79: 0 | G79: 0 | H79: 0 | I79: 0 | J79: 0
A80: 101-2190-001 | B80: CIVIL JUSTICE - CITY PORTION | D80: 0 | G80: 0 | H80: 0 | I80: 0 | J80: 0
A81: 101-2190-002 | B81: CIVIL JUSTICE - STATE PORTION | D81: 0 | G81: 0 | H81: 0 | I81: 0 | J81: 0
A82: 101-2190-003 | B82: CHILD SAFETY | D82: 0 | G82: 0 | H82: 0 | I82: 0 | J82: 0
A83: 101-2250-000 | B83: UNITED WAY WITHHOLDING | D83: 0 | G83: 0 | H83: 0 | I83: 0 | J83: 0
A84: 101-2260-000 | B84: FICA SS WITHHELD | D84: 0 | G84: 0 | H84: 0 | I84: 0 | J84: 0
A85: 101-2270-000 | B85: FICA/Medicare Withheld | D85: 0 | G85: 0 | H85: 0 | I85: 0 | J85: 0
A86: 101-2280-000 | B86: Federal Income Taxes | D86: 0 | G86: 0 | H86: 0 | I86: 0 | J86: 0
A87: 101-2310-000 | B87: Employee Retirement | D87: 0 | G87: 0 | H87: 0 | I87: 0 | J87: 0
A88: 101-2320-000 | B88: OTHER GARNISHMENTS | D88: 0 | G88: 0 | H88: 0 | I88: 0 | J88: 0
A89: 101-2330-000 | B89: Group Health & Life Ins. | D89: 0 | G89: 0 | H89: 0 | I89: 0 | J89: 0
A90: 101-2340-000 | B90: Child Support | D90: 0 | G90: 0 | H90: 0 | I90: 0 | J90: 0
A91: 101-2350-000 | B91: DEFERRED COMP PAYABLE | D91: 0 | G91: 0 | H91: 0 | I91: 0 | J91: 0
A92: 101-2360-000 | B92: TWC Payable | D92: 0 | G92: 0 | H92: 0 | I92: 0 | J92: 0
A93: 101-2440-000 | B93: N/P - First State - DO NOT USE | D93: 0 | G93: 0 | H93: 0 | I93: 0 | J93: 0
A94: 101-2570-000 | B94: Accrued Payroll | D94: 0 | G94: 0 | H94: 0 | I94: 0 | J94: 0
A95: 101-2600-000 | B95: O/S Checks Payable | D95: 0 | G95: 0 | H95: 0 | I95: 0 | J95: 0
A96: 101-2601-000 | B96: OVERPAYMENT | D96: 0 | G96: 0 | H96: 0 | I96: 0 | J96: 0
A97: 101-2700-000 | B97: Developer Deposit | D97: 0 | G97: 0 | H97: 0 | I97: 0 | J97: 0
A98: 101-2800-000 | B98: N/P - ANB - 1 (DO NOT USE) | D98: 0 | G98: 0 | H98: 0 | I98: 0 | J98: 0
A99: 101-2805-000 | B99: N/P - ANB - 2 (DO NOT USE) | D99: 0 | G99: 0 | H99: 0 | I99: 0 | J99: 0
A100: 101-2810-000 | B100: N/P - ANB - 3 (DO NOT USE) | D100: 0 | G100: 0 | H100: 0 | I100: 0 | J100: 0
A101: 101-2815-000 | B101: N/P - ANB - 4 (DO NOT USE) | D101: 0 | G101: 0 | H101: 0 | I101: 0 | J101: 0
A102: 101-2820-000 | B102: N/P - TX COM FIRE (DO NOT USE) | D102: 0 | G102: 0 | H102: 0 | I102: 0 | J102: 0
A103: 101-2825-000 | B103: N/P - LEASE PAY | D103: 0 | G103: 0 | H103: 0 | I103: 0 | J103: 0
A104: 101-2830-000 | B104: N/P - DELL - 1 (DO NOT USE) | D104: 0 | G104: 0 | H104: 0 | I104: 0 | J104: 0
A105: 101-2835-000 | B105: N/P - DELL - 2 (DO NOT USE) | D105: 0 | G105: 0 | H105: 0 | I105: 0 | J105: 0
A106: 101-2840-000 | B106: COMP ABSENCES (DO NOT USE) | D106: 0 | G106: 0 | H106: 0 | I106: 0 | J106: 0
A107: 101-2990-000 | B107: Deferred Revenues-Ad Valorem | D107: 0 | G107: 0 | H107: 0 | I107: 0 | J107: 0
A108: 101-2990-100 | B108: Deferred Revenue Other | D108: 0 | G108: 0 | H108: 0 | I108: 0 | J108: 0
A109: 101-2991-000 | B109: Payroll to be Allocated | D109: 0 | G109: 0 | H109: 0 | I109: 0 | J109: 0
A110: 101-3001-000 | B110: Desig Fund Bal-Mun CT Tech Fun | D110: 0 | G110: 0 | H110: 0 | I110: 0 | J110: 0
A111: 101-3040-000 | B111: Designated for Assets Held | D111: 0 | G111: 0 | H111: 0 | I111: 0 | J111: 0
A112: 101-3050-000 | B112: Desig Fund Bal-BLDG Sec Fund | D112: 0 | G112: 0 | H112: 0 | I112: 0 | J112: 0
A113: 101-3060-000 | B113: Desig Fund Bal -Forfeiture FD | D113: 0 | G113: 0 | H113: 0 | I113: 0 | J113: 0
A114: 101-3070-000 | B114: Designated for Park Fund | D114: 0 | G114: 0 | H114: 0 | I114: 0 | J114: 0
A115: 101-3080-000 | B115: Designated for Fire Equipment | D115: 0 | G115: 0 | H115: 0 | I115: 0 | J115: 0
A116: 101-3090-000 | B116: Designated for Celebrate Main | D116: 0 | G116: 0 | H116: 0 | I116: 0 | J116: 0
A117: 101-3900-000 | B117: Opening Bal Equity | D117: 0 | G117: 0 | H117: 0 | I117: 0 | J117: 0
A118: 101-4076-360 | B118: REFUNDS | D118: 0 | G118: 0 | H118: 0 | I118: 0 | J118: 0
A119: 101-5000-000 | B119: PRIOR YEAR RESOURCES | D119: 0 | G119: 0 | H119: 0 | I119: 0 | J119: 0
A120: 101-5005-000 | B120: CVFD | D120: 30000 | G120: 0 | H120: 0 | I120: 0 | J120: 0
A121: 101-5006-000 | B121: POLICE SEIZURE REVENUE | D121: 0 | G121: 0 | H121: 0 | I121: 0 | J121: 0
A122: 101-5102-100 | B122: PROPERTY TAX (M & O) | D122: 814495.4829 | G122: 0 | H122: 0 | I122: 0 | J122: 0
A123: 101-5102-200 | B123: I&S Tax | D123: 331066.4193 | G123: 0 | H123: 0 | I123: 0 | J123: 0
A124: 101-5103-100 | B124: Sales Tax | D124: 175000 | G124: 0 | H124: 0 | I124: 0 | J124: 0
A125: 101-5103-200 | B125: PROPERTY TAX RELIEF | D125: 60000 | G125: 0 | H125: 0 | I125: 0 | J125: 0
A126: 101-5103-300 | B126: LIQUOR TAX (SALES) | D126: 0 | G126: 0 | H126: 0 | I126: 0 | J126: 0
A127: 101-5104-000 | B127: FRANCHISE TAX | D127: 150000 | G127: 0 | H127: 0 | I127: 0 | J127: 0
A128: 101-5112-100 | B128: Permit Fees | D128: 50000 | G128: 0 | H128: 0 | I128: 0 | J128: 0
A129: 101-5112-200 | B129: INFRASTRUCTURE FEES | D129: 20000 | G129: 0 | H129: 0 | I129: 0 | J129: 0
A130: 101-5112-300 | B130: FIRE INSPECTION FEE | D130: 0 | G130: 0 | H130: 0 | I130: 0 | J130: 0
A131: 101-5112-400 | B131: LIFE SAFETY INSPECTION | D131: 0 | G131: 0 | H131: 0 | I131: 0 | J131: 0
A132: 101-5112-500 | B132: Contractor License | D132: 0 | G132: 0 | H132: 0 | I132: 0 | J132: 0
A133: 101-5112-700 | B133: Permits - Heartland | D133: 0 | G133: 0 | H133: 0 | I133: 0 | J133: 0
A134: 101-5113-000 | B134: ZONING/VARIANCE | D134: 200 | G134: 0 | H134: 0 | I134: 0 | J134: 0
A135: 101-5114-000 | B135: WATER TOWER LEASES | D135: 27000 | G135: 0 | H135: 0 | I135: 0 | J135: 0
A136: 101-5115-000 | B136: REMEDIATION | D136: 0 | G136: 0 | H136: 0 | I136: 0 | J136: 0
A137: 101-5119-000 | B137: ACCIDENT REPORTS | D137: 0 | G137: 0 | H137: 0 | I137: 0 | J137: 0
A138: 101-5120-000 | B138: OPEN RECORDS REQUESTS | D138: 0 | G138: 0 | H138: 0 | I138: 0 | J138: 0
A139: 101-5121-000 | B139: RENTAL INSPECTION FEE | D139: 0 | G139: 0 | H139: 0 | I139: 0 | J139: 0
A140: 101-5130-000 | B140: MISCELLANEOUS REVENUE | D140: 25000 | G140: 0 | H140: 0 | I140: 0 | J140: 0
A141: 101-5131-000 | B141: CREDIT CARD USE FEE | D141: 0 | G141: 0 | H141: 0 | I141: 0 | J141: 0
A142: 101-5132-000 | B142: ANIMAL IMPOUND FEE | D142: 0 | G142: 0 | H142: 0 | I142: 0 | J142: 0
A143: 101-5133-000 | B143: ANIMAL BOARDING FEE | D143: 0 | G143: 0 | H143: 0 | I143: 0 | J143: 0
A144: 101-5134-000 | B144: REIMBURSEMENT OF LEGAL FEES | D144: 0 | G144: 0 | H144: 0 | I144: 0 | J144: 0
A145: 101-5135-000 | B145: REIMBURSEMENT OF PLANNER/ENGIN | D145: 0 | G145: 0 | H145: 0 | I145: 0 | J145: 0
A146: 101-5136-000 | B146: FIRE INS REIMB | D146: 0 | G146: 0 | H146: 0 | I146: 0 | J146: 0
A147: 101-5144-000 | B147: REIMBURSEMENT CEDC STAFF | D147: 0 | G147: 0 | H147: 0 | I147: 0 | J147: 0
A148: 101-5145-000 | B148: SHOP REIMBURSEMENT | D148: 0 | G148: 0 | H148: 0 | I148: 0 | J148: 0
A149: 101-5146-000 | B149: ADMINISTRATION REIMBURSEMENT | D149: 0 | G149: 0 | H149: 0 | I149: 0 | J149: 0
A150: 101-5149-000 | B150: KAUFMAN COUNTY TOURNAMENT | D150: 0 | G150: 0 | H150: 0 | I150: 0 | J150: 0
A151: 101-5149-100 | B151: Kaufman Co. Day | D151: 0 | G151: 0 | H151: 0 | I151: 0 | J151: 0
A152: 101-5150-000 | B152: FINES & FEES | D152: 140000 | G152: 0 | H152: 0 | I152: 0 | J152: 0
A153: 101-5151-000 | B153: WARRANT FEES | D153: 15000 | G153: 0 | H153: 0 | I153: 0 | J153: 0
A154: 101-5152-000 | B154: ADM Fees Coll | D154: 0 | G154: 0 | H154: 0 | I154: 0 | J154: 0
A155: 101-5152-100 | B155: PAYMENT PLAN | D155: 200 | G155: 0 | H155: 0 | I155: 0 | J155: 0
A156: 101-5152-200 | B156: MUNICIPAL COURT SECURITY FUND | D156: 3800 | G156: 0 | H156: 0 | I156: 0 | J156: 0
A157: 101-5152-300 | B157: JUDICIAL EFFICIENCY FEE | D157: 1000 | G157: 0 | H157: 0 | I157: 0 | J157: 0
A158: 101-5153-000 | B158: TRAFFIC FINES | D158: 3800 | G158: 0 | H158: 0 | I158: 0 | J158: 0
A159: 101-5154-000 | B159: ADDITIONAL COURT COSTS | D159: 0 | G159: 0 | H159: 0 | I159: 0 | J159: 0
A160: 101-5155-000 | B160: MUNICIPAL COURT TECH FUND | D160: 10000 | G160: 0 | H160: 0 | I160: 0 | J160: 0
A161: 101-5156-000 | B161: STATE FEES | D161: 75000 | G161: 0 | H161: 0 | I161: 0 | J161: 0
A162: 101-5158-000 | B162: FTA (DPS/OMNIBASE) | D162: 0 | G162: 0 | H162: 0 | I162: 0 | J162: 0
A163: 101-5159-000 | B163: FTA (CITY) | D163: 0 | G163: 0 | H163: 0 | I163: 0 | J163: 0
A164: 101-5160-000 | B164: Contributions Revenue | D164: 0 | G164: 0 | H164: 0 | I164: 0 | J164: 0
A165: 101-5160-100 | B165: POLICE SEIZURE REVENUE 32-7499 | D165: 0 | G165: 0 | H165: 0 | I165: 0 | J165: 0
A166: 101-5165-100 | B166: Police Reimb | D166: 0 | G166: 0 | H166: 0 | I166: 0 | J166: 0
A167: 101-5185-000 | B167: AMS COLLECTION | D167: 0 | G167: 0 | H167: 0 | I167: 0 | J167: 0
A168: 101-5190-000 | B168: DT Construction Rental Revenue | D168: 0 | G168: 0 | H168: 0 | I168: 0 | J168: 0
A169: 101-5210-000 | B169: Rent | D169: 0 | G169: 0 | H169: 0 | I169: 0 | J169: 0
A170: 101-5455-000 | B170: TCLEOSE REVENUE | D170: 0 | G170: 0 | H170: 0 | I170: 0 | J170: 0
A171: 101-5592-000 | B171: Silent Stars Donations | D171: 0 | G171: 0 | H171: 0 | I171: 0 | J171: 0
A172: 101-5595-000 | B172: CHRISTMAS FESTIVITIES | D172: 0 | G172: 0 | H172: 0 | I172: 0 | J172: 0
A173: 101-5598-000 | B173: Unused Mun. Ct. Tech Funds | D173: 0 | G173: 0 | H173: 0 | I173: 0 | J173: 0
A174: 101-5800-000 | B174: State/Federal Grant | D174: 0 | G174: 0 | H174: 0 | I174: 0 | J174: 0
A175: 101-5920-000 | B175: INTEREST INCOME | D175: 0 | G175: 0 | H175: 0 | I175: 0 | J175: 0
A176: 101-5926-000 | B176: Loan Proceeds | D176: 0 | G176: 0 | H176: 0 | I176: 0 | J176: 0
A177: 101-6320-000 | B177: POLICE SERVICES AGREEMENT | D177: 186667 | G177: 0 | H177: 0 | I177: 0 | J177: 0
A178: 101-6700-000 | B178: Gain or Loss on Sale | D178: 0 | G178: 0 | H178: 0 | I178: 0 | J178: 0
A179: 101-6990-000 | B179: TRANSFER IN | D179: 0 | G179: 0 | H179: 0 | I179: 0 | J179: 0
A180: 101-7-20-5160-000 | B180: CONTRIBUTIONS/DONATIONS | D180: 2000
A181: 101-7-20-6560-000 | B181: Payroll Expenses | D181: 0 | G181: 0 | H181: 0 | I181: 0 | J181: 0
A182: 101-7-20-7000-999 | B182: City Hall-Admin | D182: 0 | G182: 0 | H182: 0 | I182: 0 | J182: 0
A183: 101-7-20-7101-000 | B183: SALARIES & WAGES - ADMIN. | D183: 195756.74 | G183: 0 | H183: 0 | I183: 0 | J183: 0 | L183: =59736*1.05 -> 62722.8
A184: 101-7-20-7103-200 | B184: PART TIME WAGES | D184: 0 | G184: 0 | H184: 0 | I184: 0 | J184: 0
A185: 101-7-20-7105-000 | B185: BENEFITS | D185: 7819.46 | G185: 0 | H185: 0 | I185: 0 | J185: 0 | L185: =6495*1.05 -> 6819.75
A186: 101-7-20-7105-100 | B186: HSA Expense | D186: 0 | G186: 0 | H186: 0 | I186: 0 | J186: 0
A187: 101-7-20-7106-000 | B187: MEDICARE | D187: 3621.915415 | G187: 0 | H187: 0 | I187: 0 | J187: 0 | L187: =1732*1.05 -> 1818.6
A188: 101-7-20-7107-000 | B188: WORKERS COMPENSATION | D188: 472.5 | G188: 0 | H188: 0 | I188: 0 | J188: 0 | L188: =450*1.05 -> 472.5
A189: 101-7-20-7108-000 | B189: RETIREMENT | D189: 17610.00253 | G189: 0 | H189: 0 | I189: 0 | J189: 0 | L189: 5000
A190: 101-7-20-7109-000 | B190: FICA | D190: 0 | G190: 0 | H190: 0 | I190: 0 | J190: 0
A191: 101-7-20-7110-000 | B191: UNEMPLOYMENT | D191: 0 | G191: 0 | H191: 0 | I191: 0 | J191: 0 | L191: 10000
A192: 101-7-20-7111-000 | B192: CM AUTO ALLOWANCE | D192: 2400 | G192: 0 | H192: 0 | I192: 0 | J192: 0 | L192: 2400
A193: 101-7-20-7111-100 | B193: CM HOUSING ALLOWANCE | D193: 0 | G193: 0 | H193: 0 | I193: 0 | J193: 0 | L193: 0
A194: 101-7-20-7111-200 | B194: CM INSURANCE ALLOWANCE | D194: 0 | G194: 0 | H194: 0 | I194: 0 | J194: 0
A195: 101-7-20-7112-000 | B195: CM EXPENSE | D195: 5000 | G195: 0 | H195: 0 | I195: 0 | J195: 0 | L195: 5000
A196: 101-7-20-7113-000 | B196: CM TRAINING | D196: 4000 | G196: 0 | H196: 0 | I196: 0 | J196: 0 | L196: 2000
A197: 101-7-20-7115-000 | B197: COUNCIL EXPENSE | D197: 20000 | G197: 0 | H197: 0 | I197: 0 | J197: 0
A198: 101-7-20-7116-000 | B198: PLANNING & ZONING EXPENSE | D198: 200 | G198: 0 | H198: 0 | I198: 0 | J198: 0 | L198: 200
A199: 101-7-20-7120-000 | B199: TUITION & TRAINING | D199: 3000 | G199: 0 | H199: 0 | I199: 0 | J199: 0 | L199: 2500
A200: 101-7-20-7121-000 | B200: TRAVEL EXPENSE | D200: 3000 | G200: 0 | H200: 0 | I200: 0 | J200: 0 | L200: 4000
A201: 101-7-20-7150-000 | B201: EMPLOYEE RECOGNITION | D201: 2000 | G201: 0 | H201: 0 | I201: 0 | J201: 0 | L201: 1000
A202: 101-7-20-7151-000 | B202: 457 CONTRIBUTION | D202: 0 | G202: 0 | H202: 0 | I202: 0 | J202: 0 | L202: 0
A203: 101-7-20-7201-100 | B203: CLERICAL SUPPLIES | D203: 0 | G203: 0 | H203: 0 | I203: 0 | J203: 0 | L203: 0
A204: 101-7-20-7201-200 | B204: OFFICE SUPPLIES | D204: 6500 | G204: 0 | H204: 0 | I204: 0 | J204: 0 | L204: 8000
A205: 101-7-20-7201-300 | B205: CLEANING SUPPLIES | D205: 0 | G205: 0 | H205: 0 | I205: 0 | J205: 0 | L205: 0
A206: 101-7-20-7202-000 | B206: POSTAGE | D206: 3000 | G206: 0 | H206: 0 | I206: 0 | J206: 0 | L206: 3000
A207: 101-7-20-7203-000 | B207: DUES & SUBSCRIPTIONS | D207: 5000 | G207: 0 | H207: 0 | I207: 0 | J207: 0 | L207: 5000
... 1394 more rows

Sheet 2011-2012
A7: 1 | B7: =A7+1 -> 2 | C7: 3 | D7: 4
A8: ACCTSUM | B8: DESC
B9: Description | D9: Actual | F9: Message
A11: 101-1009-000 | B11: GENERAL FUND CASH IN BANK | D11: 0
A12: 101-1010-001 | B12: POLICE - TCLEOSE | D12: 0
A13: 101-1010-002 | B13: POLICE - ASSET FORFEITURE | D13: 0
A14: 101-1010-003 | B14: PARK FUND | D14: 0
A15: 101-1010-004 | B15: FIRE - MAJOR EQUIPMENT | D15: 0
A16: 101-1010-005 | B16: EMPLOYEE SAVINGS | D16: 0
A17: 101-1010-006 | B17: CELEBRATE MAIN STREET | D17: 0
A18: 101-1010-007 | B18: MUNICIPAL COURT BOND | D18: 0
A19: 101-1010-008 | B19: MUNICIPAL COURT TECH | D19: 0
A20: 101-1010-009 | B20: ANB TDHCA Grant Project | D20: 0
A21: 101-1010-010 | B21: Development Escrow Fund | D21: 0
A22: 101-1010-011 | B22: Dallas Raceway Escrow | D22: 0
A23: 101-1010-012 | B23: CRANDALL GATEWAY PROJECT | D23: 0
A24: 101-1010-013 | B24: Municipal Court Security | D24: 0
A25: 101-1010-014 | B25: CASH - DOWNTOWN PROJECT | D25: 0
A26: 101-1010-090 | B26: ANB Christmas Festival | D26: 0
A27: 101-1010-099 | B27: CLAIM ON POOLED CASH | D27: 0
A28: 101-1020-000 | B28: ANB General Fund I & S | D28: 0
A29: 101-1030-000 | B29: ANB General Fund Reserve | D29: 0
A30: 101-1040-000 | B30: PETTY CASH | D30: 0
A31: 101-1084-204 | B31: DUE FROM CREEKVIEW | D31: 0
A32: 101-1084-205 | B32: Loan to Golf Course | D32: 0
A33: 101-1084-298 | B33: DUE FROM EDC | D33: 0
A34: 101-1084-590 | B34: crandall | D34: 0
A35: 101-1084-591 | B35: DUE FROM WATER | D35: 0
A36: 101-1084-596 | B36: DUE FROM TRASH | D36: 0
A37: 101-1084-599 | B37: Due from Water Sewer | D37: 0
A38: 101-1084-661 | B38: DUE FROM EQUIPMENT | D38: 0
A39: 101-1084-750 | B39: DUE FROM PAYROLL | D39: 0
A40: 101-1141-000 | B40: Sales & Mixed Beverage Tax Rec | D40: 0
A41: 101-1141-001 | B41: Franchise Tax - Receivable | D41: 0
A42: 101-1141-002 | B42: Property Taxes-Receivable | D42: 0
A43: 101-1141-003 | B43: Allowance for property tax | D43: 0
A44: 101-1145-000 | B44: Credit Card Receivable | D44: 0
A45: 101-1146-000 | B45: Transfers in Transit | D45: 0
A46: 101-1155-000 | B46: ACCRUED INTEREST RECEIVABLE | D46: 0
A47: 101-1160-000 | B47: Return Ck Receivable | D47: 0
A48: 101-1161-000 | B48: Other Receivables | D48: 0
A49: 101-1180-000 | B49: Due From State | D49: 0
A50: 101-1230-000 | B50: Prepaid Insurance | D50: 0
A51: 101-1300-000 | B51: Assets Held for Sale | D51: 0
A52: 101-1500-000 | B52: LAND (DO NOT USE) | D52: 0
A53: 101-1510-000 | B53: BUILDINGS (DO NOT USE) | D53: 0
A54: 101-1520-000 | B54: IMPROVEMENTS (DO NOT USE) | D54: 0
A55: 101-1530-000 | B55: MACHINERY & EQUIPMENT | D55: 0
A56: 101-1540-000 | B56: INFRASTRUCTURE (DO NOT USE) | D56: 0
A57: 101-1599-000 | B57: ACCUM DEPR (DO NOT USE) | D57: 0
A58: 101-2010-000 | B58: ACCOUNTS PAYABLE - POOLED | D58: 0
A59: 101-2020-000 | B59: ACCOUNTS PAYABLE | D59: 0
A60: 101-2020-001 | B60: Acct Pay - Southern Software | D60: 0
A61: 101-2100-000 | B61: Accrued Expenses | D61: 0
A62: 101-2120-000 | B62: State Court Costs Payable | D62: 0
A63: 101-2121-000 | B63: COURT TECHNOLOGY FEES COLLECTE | D63: 0
A64: 101-2122-000 | B64: COURT SECURITY FEES COLLECTED | D64: 0
A65: 101-2123-000 | B65: COURT TIME PMT FEE COLLECTED | D65: 0
A66: 101-2125-000 | B66: OMNI COURT FEES PAYABLE | D66: 0
A67: 101-2130-000 | B67: Bonds Payable-Current | D67: 0
A68: 101-2135-000 | B68: Bond Escrow Account | D68: 0
A69: 101-2140-298 | B69: Due to EDC | D69: 0
A70: 101-2140-591 | B70: Due to Water and Sewer | D70: 0
A71: 101-2140-750 | B71: DUE TO PAYROLL | D71: 0
A72: 101-2156-000 | B72: IRS Taxes Due | D72: 0
A73: 101-2158-000 | B73: Garnish Payroll | D73: 0
A74: 101-2159-000 | B74: Emp. Christmas Savings Club | D74: 0
A75: 101-2161-000 | B75: SUPPLEMENTAL INSURANCE | D75: 0
A76: 101-2166-000 | B76: Disaster Relief Fund | D76: 0
A77: 101-2181-000 | B77: Due to Other Governments | D77: 0
A78: 101-2185-000 | B78: Due to Collection Agency | D78: 0
A79: 101-2186-000 | B79: Loan - Bldg., Phones, Streets | D79: 0
A80: 101-2190-001 | B80: CIVIL JUSTICE - CITY PORTION | D80: 0
A81: 101-2190-002 | B81: CIVIL JUSTICE - STATE PORTION | D81: 0
A82: 101-2190-003 | B82: CHILD SAFETY | D82: 0
A83: 101-2250-000 | B83: UNITED WAY WITHHOLDING | D83: 0
A84: 101-2260-000 | B84: FICA SS WITHHELD | D84: 0
A85: 101-2270-000 | B85: FICA/Medicare Withheld | D85: 0
A86: 101-2280-000 | B86: Federal Income Taxes | D86: 0
A87: 101-2310-000 | B87: Employee Retirement | D87: 0
A88: 101-2320-000 | B88: OTHER GARNISHMENTS | D88: 0
A89: 101-2330-000 | B89: Group Health & Life Ins. | D89: 0
A90: 101-2340-000 | B90: Child Support | D90: 0
A91: 101-2350-000 | B91: DEFERRED COMP PAYABLE | D91: 0
A92: 101-2360-000 | B92: TWC Payable | D92: 0
A93: 101-2440-000 | B93: N/P - First State - DO NOT USE | D93: 0
A94: 101-2570-000 | B94: Accrued Payroll | D94: 0
A95: 101-2600-000 | B95: O/S Checks Payable | D95: 0
A96: 101-2601-000 | B96: OVERPAYMENT | D96: 0
A97: 101-2700-000 | B97: Developer Deposit | D97: 0
A98: 101-2800-000 | B98: N/P - ANB - 1 (DO NOT USE) | D98: 0
A99: 101-2805-000 | B99: N/P - ANB - 2 (DO NOT USE) | D99: 0
A100: 101-2810-000 | B100: N/P - ANB - 3 (DO NOT USE) | D100: 0
A101: 101-2815-000 | B101: N/P - ANB - 4 (DO NOT USE) | D101: 0
A102: 101-2820-000 | B102: N/P - TX COM FIRE (DO NOT USE) | D102: 0
A103: 101-2825-000 | B103: N/P - LEASE PAY | D103: 0
A104: 101-2830-000 | B104: N/P - DELL - 1 (DO NOT USE) | D104: 0
A105: 101-2835-000 | B105: N/P - DELL - 2 (DO NOT USE) | D105: 0
A106: 101-2840-000 | B106: COMP ABSENCES (DO NOT USE) | D106: 0
A107: 101-2990-000 | B107: Deferred Revenues-Ad Valorem | D107: 0
A108: 101-2990-100 | B108: Deferred Revenue Other | D108: 0
A109: 101-2991-000 | B109: Payroll to be Allocated | D109: 0
A110: 101-3001-000 | B110: Desig Fund Bal-Mun CT Tech Fun | D110: 0
A111: 101-3040-000 | B111: Designated for Assets Held | D111: 0
A112: 101-3050-000 | B112: Desig Fund Bal-BLDG Sec Fund | D112: 0
A113: 101-3060-000 | B113: Desig Fund Bal -Forfeiture FD | D113: 0
A114: 101-3070-000 | B114: Designated for Park Fund | D114: 0
A115: 101-3080-000 | B115: Designated for Fire Equipment | D115: 0
A116: 101-3090-000 | B116: Designated for Celebrate Main | D116: 0
A117: 101-3900-000 | B117: Opening Bal Equity | D117: 0
A118: 101-4076-360 | B118: REFUNDS | D118: 0
A119: 101-5000-000 | B119: PRIOR YEAR RESOURCES | D119: 0
A120: 101-5005-000 | B120: CVFD | D120: 0
A121: 101-5006-000 | B121: POLICE SEIZURE REVENUE | D121: 0
A122: 101-5102-100 | B122: PROPERTY TAX (M & O) | D122: 0
A123: 101-5102-200 | B123: I&S Tax | D123: 0
A124: 101-5103-100 | B124: Sales Tax | D124: 0
A125: 101-5103-200 | B125: PROPERTY TAX RELIEF | D125: 0
A126: 101-5103-300 | B126: LIQUOR TAX (SALES) | D126: 0
A127: 101-5104-000 | B127: FRANCHISE TAX | D127: 0
A128: 101-5112-100 | B128: Permit Fees | D128: 0
A129: 101-5112-200 | B129: INFRASTRUCTURE FEES | D129: 0
A130: 101-5112-300 | B130: FIRE INSPECTION FEE | D130: 0
A131: 101-5112-400 | B131: LIFE SAFETY INSPECTION | D131: 0
A132: 101-5112-500 | B132: Contractor License | D132: 0
A133: 101-5112-700 | B133: Permits - Heartland | D133: 0
A134: 101-5113-000 | B134: ZONING/VARIANCE | D134: 0
A135: 101-5114-000 | B135: WATER TOWER LEASES | D135: 0
A136: 101-5115-000 | B136: REMEDIATION | D136: 0
A137: 101-5119-000 | B137: ACCIDENT REPORTS | D137: 0
A138: 101-5120-000 | B138: OPEN RECORDS REQUESTS | D138: 0
A139: 101-5121-000 | B139: RENTAL INSPECTION FEE | D139: 0
A140: 101-5130-000 | B140: MISCELLANEOUS REVENUE | D140: 0
A141: 101-5131-000 | B141: CREDIT CARD USE FEE | D141: 0
A142: 101-5132-000 | B142: ANIMAL IMPOUND FEE | D142: 0
A143: 101-5133-000 | B143: ANIMAL BOARDING FEE | D143: 0
A144: 101-5134-000 | B144: REIMBURSEMENT OF LEGAL FEES | D144: 0
A145: 101-5135-000 | B145: REIMBURSEMENT OF PLANNER/ENGIN | D145: 0
A146: 101-5136-000 | B146: FIRE INS REIMB | D146: 0
A147: 101-5144-000 | B147: REIMBURSEMENT CEDC STAFF | D147: 0
A148: 101-5145-000 | B148: SHOP REIMBURSEMENT | D148: 0
A149: 101-5146-000 | B149: ADMINISTRATION REIMBURSEMENT | D149: 0
A150: 101-5149-000 | B150: KAUFMAN COUNTY TOURNAMENT | D150: 0
A151: 101-5149-100 | B151: Kaufman Co. Day | D151: 0
A152: 101-5150-000 | B152: FINES & FEES | D152: 0
A153: 101-5151-000 | B153: WARRANT FEES | D153: 0
A154: 101-5152-000 | B154: ADM Fees Coll | D154: 0
A155: 101-5152-100 | B155: PAYMENT PLAN | D155: 0
A156: 101-5152-200 | B156: MUNICIPAL COURT SECURITY FUND | D156: 0
A157: 101-5152-300 | B157: JUDICIAL EFFICIENCY FEE | D157: 0
A158: 101-5153-000 | B158: TRAFFIC FINES | D158: 0
A159: 101-5154-000 | B159: ADDITIONAL COURT COSTS | D159: 0
A160: 101-5155-000 | B160: MUNICIPAL COURT TECH FUND | D160: 0
A161: 101-5156-000 | B161: STATE FEES | D161: 0
A162: 101-5158-000 | B162: FTA (DPS/OMNIBASE) | D162: 0
A163: 101-5159-000 | B163: FTA (CITY) | D163: 0
A164: 101-5160-000 | B164: Contributions Revenue | D164: 0
A165: 101-5160-100 | B165: POLICE SEIZURE REVENUE 32-7499 | D165: 0
A166: 101-5165-100 | B166: Police Reimb | D166: 0
A167: 101-5185-000 | B167: AMS COLLECTION | D167: 0
A168: 101-5190-000 | B168: DT Construction Rental Revenue | D168: 0
A169: 101-5210-000 | B169: Rent | D169: 0
A170: 101-5455-000 | B170: TCLEOSE REVENUE | D170: 0
A171: 101-5592-000 | B171: Silent Stars Donations | D171: 0
A172: 101-5595-000 | B172: CHRISTMAS FESTIVITIES | D172: 0
A173: 101-5598-000 | B173: Unused Mun. Ct. Tech Funds | D173: 0
A174: 101-5800-000 | B174: State/Federal Grant | D174: 0
A175: 101-5920-000 | B175: INTEREST INCOME | D175: 0
A176: 101-5926-000 | B176: Loan Proceeds | D176: 0
A177: 101-6320-000 | B177: POLICE SERVICES AGREEMENT | D177: 0
A178: 101-6700-000 | B178: Gain or Loss on Sale | D178: 0
A179: 101-6990-000 | B179: TRANSFER IN | D179: 0
A180: 101-7-20-6560-000 | B180: Payroll Expenses | D180: 0
A181: 101-7-20-7000-999 | B181: City Hall-Admin | D181: 0
A182: 101-7-20-7101-000 | B182: SALARIES & WAGES - ADMIN. | D182: 62722.8
A183: 101-7-20-7103-200 | B183: PART TIME WAGES | D183: 0
A184: 101-7-20-7105-000 | B184: BENEFITS | D184: 6819.75
A185: 101-7-20-7105-100 | B185: HSA Expense | D185: 0
A186: 101-7-20-7106-000 | B186: MEDICARE | D186: 1818.6
A187: 101-7-20-7107-000 | B187: WORKERS COMPENSATION | D187: 472.5
A188: 101-7-20-7108-000 | B188: RETIREMENT | D188: 5000
A189: 101-7-20-7109-000 | B189: FICA | D189: 0
A190: 101-7-20-7110-000 | B190: UNEMPLOYMENT | D190: 10000
A191: 101-7-20-7111-000 | B191: CM AUTO ALLOWANCE | D191: 2400
A192: 101-7-20-7111-100 | B192: CM HOUSING ALLOWANCE | D192: 0
A193: 101-7-20-7111-200 | B193: CM INSURANCE ALLOWANCE | D193: 0
A194: 101-7-20-7112-000 | B194: CM EXPENSE | D194: 5000
A195: 101-7-20-7113-000 | B195: CM TRAINING | D195: 2000
A196: 101-7-20-7115-000 | B196: COUNCIL EXPENSE | D196: 0
A197: 101-7-20-7116-000 | B197: PLANNING & ZONING EXPENSE | D197: 200
A198: 101-7-20-7120-000 | B198: TUITION & TRAINING | D198: 2500
A199: 101-7-20-7121-000 | B199: TRAVEL EXPENSE | D199: 4000
A200: 101-7-20-7150-000 | B200: EMPLOYEE RECOGNITION | D200: 1000
A201: 101-7-20-7151-000 | B201: 457 CONTRIBUTION | D201: 0
A202: 101-7-20-7201-100 | B202: CLERICAL SUPPLIES | D202: 0
A203: 101-7-20-7201-200 | B203: OFFICE SUPPLIES | D203: 8000
A204: 101-7-20-7201-300 | B204: CLEANING SUPPLIES | D204: 0
A205: 101-7-20-7202-000 | B205: POSTAGE | D205: 3000
A206: 101-7-20-7203-000 | B206: DUES & SUBSCRIPTIONS | D206: 5000
A207: 101-7-20-7211-000 | B207: NEWSLETTER | D207: 2000
... 1384 more rows
